Workbook

Sheet Останов
I1: Останов БДМ | O1: Для бригадного расчёта | AG1: бумажный цех
B3: Таб№ | C3: Фамилия, Имя, Отчество | E3: Отработано часов по числам месяца | AJ3: Часы
E4: 1 | F4: 2 | G4: 3 | H4: 4 | I4: 5 | J4: 6 | K4: 7 | L4: 8 | M4: 9 | N4: 10 | O4: 11 | P4: 12 | Q4: 13 | R4: 14 | S4: 15 | T4: 16 | U4: 17 | V4: 18 | W4: 19 | X4: 20 | Y4: 21 | Z4: 22 | AA4: 23 | AB4: 24 | AC4: 25 | AD4: 26 | AE4: 27 | AF4: 28 | AG4: 29 | AH4: 30 | AI4: 31
B5: =IFERROR(VLOOKUP(C5,Список!$B$2:$C$150,2,0),"") -> 465 | C5: =IFERROR(f(ROW(A1),БДМ№1!$C$5:$C$43,БДМ№1!$C$53:$C$91),"") -> Рудницкий С.Н. | D5: =IFERROR(f(ROW(B1),БДМ№1!$D$5:$D$43,БДМ№1!$D$53:$D$91),"") -> Разм. брака 2 р. | F5: 1 | AJ5: =SUM(IF(RIGHTB(D5)="%",TEXT(INDEX(E$5:AI5,MATCH(LEFTB(C5,SEARCH("%",D5)),(C$5:C5),),),"0;0;12")*E5:AI5%,E5:AI5)) -> 1
B6: =IFERROR(VLOOKUP(C6,Список!$B$2:$C$150,2,0),"") -> 465 | C6: =IFERROR(f(ROW(A2),БДМ№1!$C$5:$C$43,БДМ№1!$C$53:$C$91),"") -> Рудницкий С.Н. | D6: =IFERROR(f(ROW(B2),БДМ№1!$D$5:$D$43,БДМ№1!$D$53:$D$91),"") -> Разм. брака 2 р. % | AJ6: =SUM(IF(RIGHTB(D6)="%",TEXT(INDEX(E$5:AI6,MATCH(LEFTB(C6,SEARCH("%",D6)),(C$5:C6),),),"0;0;12")*E6:AI6%,E6:AI6)) -> 0
B7: =IFERROR(VLOOKUP(C7,Список!$B$2:$C$150,2,0),"") -> 761 | C7: =IFERROR(f(ROW(A3),БДМ№1!$C$5:$C$43,БДМ№1!$C$53:$C$91),"") -> Сацук А.Л. | D7: =IFERROR(f(ROW(B3),БДМ№1!$D$5:$D$43,БДМ№1!$D$53:$D$91),"") -> Ап.пр.хим.р-в 3 р. | AJ7: =SUM(IF(RIGHTB(D7)="%",TEXT(INDEX(E$5:AI7,MATCH(LEFTB(C7,SEARCH("%",D7)),(C$5:C7),),),"0;0;12")*E7:AI7%,E7:AI7)) -> 0
B8: =IFERROR(VLOOKUP(C8,Список!$B$2:$C$150,2,0),"") -> 761 | C8: =IFERROR(f(ROW(A4),БДМ№1!$C$5:$C$43,БДМ№1!$C$53:$C$91),"") -> Сацук А.Л. | D8: =IFERROR(f(ROW(B4),БДМ№1!$D$5:$D$43,БДМ№1!$D$53:$D$91),"") -> Ап.пр.хим.р-в 3 р. % | AJ8: =SUM(IF(RIGHTB(D8)="%",TEXT(INDEX(E$5:AI8,MATCH(LEFTB(C8,SEARCH("%",D8)),(C$5:C8),),),"0;0;12")*E8:AI8%,E8:AI8)) -> 0
B9: =IFERROR(VLOOKUP(C9,Список!$B$2:$C$150,2,0),"") -> 643 | C9: =IFERROR(f(ROW(A5),БДМ№1!$C$5:$C$43,БДМ№1!$C$53:$C$91),"") -> Буракова Т.А. | D9: =IFERROR(f(ROW(B5),БДМ№1!$D$5:$D$43,БДМ№1!$D$53:$D$91),"") -> Перссовщик 3 р. | AJ9: =SUM(IF(RIGHTB(D9)="%",TEXT(INDEX(E$5:AI9,MATCH(LEFTB(C9,SEARCH("%",D9)),(C$5:C9),),),"0;0;12")*E9:AI9%,E9:AI9)) -> 0
B10: =IFERROR(VLOOKUP(C10,Список!$B$2:$C$150,2,0),"") -> 1179 | C10: =IFERROR(f(ROW(A6),БДМ№1!$C$5:$C$43,БДМ№1!$C$53:$C$91),"") -> Брикун М.А. | D10: =IFERROR(f(ROW(B6),БДМ№1!$D$5:$D$43,БДМ№1!$D$53:$D$91),"") -> Сушильщик 4 р. | AJ10: =SUM(IF(RIGHTB(D10)="%",TEXT(INDEX(E$5:AI10,MATCH(LEFTB(C10,SEARCH("%",D10)),(C$5:C10),),),"0;0;12")*E10:AI10%,E10:AI10)) -> 0
B11: =IFERROR(VLOOKUP(C11,Список!$B$2:$C$150,2,0),"") -> 1179 | C11: =IFERROR(f(ROW(A7),БДМ№1!$C$5:$C$43,БДМ№1!$C$53:$C$91),"") -> Брикун М.А. | D11: =IFERROR(f(ROW(B7),БДМ№1!$D$5:$D$43,БДМ№1!$D$53:$D$91),"") -> Перссовщик 3 р. % | AJ11: =SUM(IF(RIGHTB(D11)="%",TEXT(INDEX(E$5:AI11,MATCH(LEFTB(C11,SEARCH("%",D11)),(C$5:C11),),),"0;0;12")*E11:AI11%,E11:AI11)) -> 0
B12: =IFERROR(VLOOKUP(C12,Список!$B$2:$C$150,2,0),"") -> 1291 | C12: =IFERROR(f(ROW(A8),БДМ№1!$C$5:$C$43,БДМ№1!$C$53:$C$91),"") -> Лысковец А.Н. | D12: =IFERROR(f(ROW(B8),БДМ№1!$D$5:$D$43,БДМ№1!$D$53:$D$91),"") -> Накатчик 3 р. | AJ12: =SUM(IF(RIGHTB(D12)="%",TEXT(INDEX(E$5:AI12,MATCH(LEFTB(C12,SEARCH("%",D12)),(C$5:C12),),),"0;0;12")*E12:AI12%,E12:AI12)) -> 0
B13: =IFERROR(VLOOKUP(C13,Список!$B$2:$C$150,2,0),"") -> 1379 | C13: =IFERROR(f(ROW(A9),БДМ№1!$C$5:$C$43,БДМ№1!$C$53:$C$91),"") -> Кадевич О.В. | D13: =IFERROR(f(ROW(B9),БДМ№1!$D$5:$D$43,БДМ№1!$D$53:$D$91),"") -> Маш.уп. маш. 2 р. | AJ13: =SUM(IF(RIGHTB(D13)="%",TEXT(INDEX(E$5:AI13,MATCH(LEFTB(C13,SEARCH("%",D13)),(C$5:C13),),),"0;0;12")*E13:AI13%,E13:AI13)) -> 0
B14: =IFERROR(VLOOKUP(C14,Список!$B$2:$C$150,2,0),"") -> 589 | C14: =IFERROR(f(ROW(A10),БДМ№1!$C$5:$C$43,БДМ№1!$C$53:$C$91),"") -> Хомич Н.Н. | D14: =IFERROR(f(ROW(B10),БДМ№1!$D$5:$D$43,БДМ№1!$D$53:$D$91),"") -> Маш.уп. маш. 2 р. | AJ14: =SUM(IF(RIGHTB(D14)="%",TEXT(INDEX(E$5:AI14,MATCH(LEFTB(C14,SEARCH("%",D14)),(C$5:C14),),),"0;0;12")*E14:AI14%,E14:AI14)) -> 0
B15: =IFERROR(VLOOKUP(C15,Список!$B$2:$C$150,2,0),"") -> 589 | C15: =IFERROR(f(ROW(A11),БДМ№1!$C$5:$C$43,БДМ№1!$C$53:$C$91),"") -> Хомич Н.Н. | D15: =IFERROR(f(ROW(B11),БДМ№1!$D$5:$D$43,БДМ№1!$D$53:$D$91),"") -> Ап.пр.хим.р-в 3 р. % | AJ15: =SUM(IF(RIGHTB(D15)="%",TEXT(INDEX(E$5:AI15,MATCH(LEFTB(C15,SEARCH("%",D15)),(C$5:C15),),),"0;0;12")*E15:AI15%,E15:AI15)) -> 0
B16: =IFERROR(VLOOKUP(C16,Список!$B$2:$C$150,2,0),"") ->  | C16: =IFERROR(f(ROW(A12),БДМ№1!$C$5:$C$43,БДМ№1!$C$53:$C$91),"") ->  | D16: =IFERROR(f(ROW(B12),БДМ№1!$D$5:$D$43,БДМ№1!$D$53:$D$91),"") ->  | AJ16: =SUM(IF(RIGHTB(D16)="%",TEXT(INDEX(E$5:AI16,MATCH(LEFTB(C16,SEARCH("%",D16)),(C$5:C16),),),"0;0;12")*E16:AI16%,E16:AI16)) -> 0
B17: =IFERROR(VLOOKUP(C17,Список!$B$2:$C$150,2,0),"") ->  | C17: =IFERROR(f(ROW(A13),БДМ№1!$C$5:$C$43,БДМ№1!$C$53:$C$91),"") ->  | D17: =IFERROR(f(ROW(B13),БДМ№1!$D$5:$D$43,БДМ№1!$D$53:$D$91),"") ->  | AJ17: =SUM(IF(RIGHTB(D17)="%",TEXT(INDEX(E$5:AI17,MATCH(LEFTB(C17,SEARCH("%",D17)),(C$5:C17),),),"0;0;12")*E17:AI17%,E17:AI17)) -> 0
B18: =IFERROR(VLOOKUP(C18,Список!$B$2:$C$150,2,0),"") ->  | C18: =IFERROR(f(ROW(A14),БДМ№1!$C$5:$C$43,БДМ№1!$C$53:$C$91),"") ->  | D18: =IFERROR(f(ROW(B14),БДМ№1!$D$5:$D$43,БДМ№1!$D$53:$D$91),"") ->  | AJ18: =SUM(IF(RIGHTB(D18)="%",TEXT(INDEX(E$5:AI18,MATCH(LEFTB(C18,SEARCH("%",D18)),(C$5:C18),),),"0;0;12")*E18:AI18%,E18:AI18)) -> 0
B19: =IFERROR(VLOOKUP(C19,Список!$B$2:$C$150,2,0),"") ->  | C19: =IFERROR(f(ROW(A15),БДМ№1!$C$5:$C$43,БДМ№1!$C$53:$C$91),"") ->  | D19: =IFERROR(f(ROW(B15),БДМ№1!$D$5:$D$43,БДМ№1!$D$53:$D$91),"") ->  | AJ19: =SUM(IF(RIGHTB(D19)="%",TEXT(INDEX(E$5:AI19,MATCH(LEFTB(C19,SEARCH("%",D19)),(C$5:C19),),),"0;0;12")*E19:AI19%,E19:AI19)) -> 0
B20: =IFERROR(VLOOKUP(C20,Список!$B$2:$C$150,2,0),"") ->  | C20: =IFERROR(f(ROW(A16),БДМ№1!$C$5:$C$43,БДМ№1!$C$53:$C$91),"") ->  | D20: =IFERROR(f(ROW(B16),БДМ№1!$D$5:$D$43,БДМ№1!$D$53:$D$91),"") ->  | H20: на этот лист копируется весь список фамилий с листа БДМ№1 и БДМ№2 кроме фамилий у которых профессия заканчивается знаком "%". Строки которых быть не должно подсвечены красным цветом. | AJ20: =SUM(IF(RIGHTB(D20)="%",TEXT(INDEX(E$5:AI20,MATCH(LEFTB(C20,SEARCH("%",D20)),(C$5:C20),),),"0;0;12")*E20:AI20%,E20:AI20)) -> 0
B21: =IFERROR(VLOOKUP(C21,Список!$B$2:$C$150,2,0),"") ->  | C21: =IFERROR(f(ROW(A17),БДМ№1!$C$5:$C$43,БДМ№1!$C$53:$C$91),"") ->  | D21: =IFERROR(f(ROW(B17),БДМ№1!$D$5:$D$43,БДМ№1!$D$53:$D$91),"") ->  | AJ21: =SUM(IF(RIGHTB(D21)="%",TEXT(INDEX(E$5:AI21,MATCH(LEFTB(C21,SEARCH("%",D21)),(C$5:C21),),),"0;0;12")*E21:AI21%,E21:AI21)) -> 0
B22: =IFERROR(VLOOKUP(C22,Список!$B$2:$C$150,2,0),"") ->  | C22: =IFERROR(f(ROW(A18),БДМ№1!$C$5:$C$43,БДМ№1!$C$53:$C$91),"") ->  | D22: =IFERROR(f(ROW(B18),БДМ№1!$D$5:$D$43,БДМ№1!$D$53:$D$91),"") ->  | AJ22: =SUM(IF(RIGHTB(D22)="%",TEXT(INDEX(E$5:AI22,MATCH(LEFTB(C22,SEARCH("%",D22)),(C$5:C22),),),"0;0;12")*E22:AI22%,E22:AI22)) -> 0
B23: =IFERROR(VLOOKUP(C23,Список!$B$2:$C$150,2,0),"") ->  | C23: =IFERROR(f(ROW(A19),БДМ№1!$C$5:$C$43,БДМ№1!$C$53:$C$91),"") ->  | D23: =IFERROR(f(ROW(B19),БДМ№1!$D$5:$D$43,БДМ№1!$D$53:$D$91),"") ->  | AJ23: =SUM(IF(RIGHTB(D23)="%",TEXT(INDEX(E$5:AI23,MATCH(LEFTB(C23,SEARCH("%",D23)),(C$5:C23),),),"0;0;12")*E23:AI23%,E23:AI23)) -> 0
B24: =IFERROR(VLOOKUP(C24,Список!$B$2:$C$150,2,0),"") ->  | C24: =IFERROR(f(ROW(A20),БДМ№1!$C$5:$C$43,БДМ№1!$C$53:$C$91),"") ->  | D24: =IFERROR(f(ROW(B20),БДМ№1!$D$5:$D$43,БДМ№1!$D$53:$D$91),"") ->  | AJ24: =SUM(IF(RIGHTB(D24)="%",TEXT(INDEX(E$5:AI24,MATCH(LEFTB(C24,SEARCH("%",D24)),(C$5:C24),),),"0;0;12")*E24:AI24%,E24:AI24)) -> 0
B25: =IFERROR(VLOOKUP(C25,Список!$B$2:$C$150,2,0),"") ->  | C25: =IFERROR(f(ROW(A21),БДМ№1!$C$5:$C$43,БДМ№1!$C$53:$C$91),"") ->  | D25: =IFERROR(f(ROW(B21),БДМ№1!$D$5:$D$43,БДМ№1!$D$53:$D$91),"") ->  | AJ25: =SUM(IF(RIGHTB(D25)="%",TEXT(INDEX(E$5:AI25,MATCH(LEFTB(C25,SEARCH("%",D25)),(C$5:C25),),),"0;0;12")*E25:AI25%,E25:AI25)) -> 0
B26: =IFERROR(VLOOKUP(C26,Список!$B$2:$C$150,2,0),"") ->  | C26: =IFERROR(f(ROW(A22),БДМ№1!$C$5:$C$43,БДМ№1!$C$53:$C$91),"") ->  | D26: =IFERROR(f(ROW(B22),БДМ№1!$D$5:$D$43,БДМ№1!$D$53:$D$91),"") ->  | AJ26: =SUM(IF(RIGHTB(D26)="%",TEXT(INDEX(E$5:AI26,MATCH(LEFTB(C26,SEARCH("%",D26)),(C$5:C26),),),"0;0;12")*E26:AI26%,E26:AI26)) -> 0
B27: =IFERROR(VLOOKUP(C27,Список!$B$2:$C$150,2,0),"") ->  | C27: =IFERROR(f(ROW(A23),БДМ№1!$C$5:$C$43,БДМ№1!$C$53:$C$91),"") ->  | D27: =IFERROR(f(ROW(B23),БДМ№1!$D$5:$D$43,БДМ№1!$D$53:$D$91),"") ->  | AJ27: =SUM(IF(RIGHTB(D27)="%",TEXT(INDEX(E$5:AI27,MATCH(LEFTB(C27,SEARCH("%",D27)),(C$5:C27),),),"0;0;12")*E27:AI27%,E27:AI27)) -> 0
B28: =IFERROR(VLOOKUP(C28,Список!$B$2:$C$150,2,0),"") ->  | C28: =IFERROR(f(ROW(A24),БДМ№1!$C$5:$C$43,БДМ№1!$C$53:$C$91),"") ->  | D28: =IFERROR(f(ROW(B24),БДМ№1!$D$5:$D$43,БДМ№1!$D$53:$D$91),"") ->  | AJ28: =SUM(IF(RIGHTB(D28)="%",TEXT(INDEX(E$5:AI28,MATCH(LEFTB(C28,SEARCH("%",D28)),(C$5:C28),),),"0;0;12")*E28:AI28%,E28:AI28)) -> 0
B29: =IFERROR(VLOOKUP(C29,Список!$B$2:$C$150,2,0),"") ->  | C29: =IFERROR(f(ROW(A25),БДМ№1!$C$5:$C$43,БДМ№1!$C$53:$C$91),"") ->  | D29: =IFERROR(f(ROW(B25),БДМ№1!$D$5:$D$43,БДМ№1!$D$53:$D$91),"") ->  | AJ29: =SUM(IF(RIGHTB(D29)="%",TEXT(INDEX(E$5:AI29,MATCH(LEFTB(C29,SEARCH("%",D29)),(C$5:C29),),),"0;0;12")*E29:AI29%,E29:AI29)) -> 0
B30: =IFERROR(VLOOKUP(C30,Список!$B$2:$C$150,2,0),"") ->  | C30: =IFERROR(f(ROW(A26),БДМ№1!$C$5:$C$43,БДМ№1!$C$53:$C$91),"") ->  | D30: =IFERROR(f(ROW(B26),БДМ№1!$D$5:$D$43,БДМ№1!$D$53:$D$91),"") ->  | AJ30: =SUM(IF(RIGHTB(D30)="%",TEXT(INDEX(E$5:AI30,MATCH(LEFTB(C30,SEARCH("%",D30)),(C$5:C30),),),"0;0;12")*E30:AI30%,E30:AI30)) -> 0
B31: =IFERROR(VLOOKUP(C31,Список!$B$2:$C$150,2,0),"") -> 300 | C31: =IFERROR(f(ROW(A1),БДМ№2!$C$5:$C$43,БДМ№2!$C$53:$C$91),"") -> Мишук Р.В. | D31: =IFERROR(f(ROW(B1),БДМ№2!$D$5:$D$43,БДМ№2!$D$53:$D$91),"") -> Машинист 6 р. | AJ31: =SUM(IF(RIGHTB(D31)="%",TEXT(INDEX(E$5:AI31,MATCH(LEFTB(C31,SEARCH("%",D31)),(C$5:C31),),),"0;0;12")*E31:AI31%,E31:AI31)) -> 0
B32: =IFERROR(VLOOKUP(C32,Список!$B$2:$C$150,2,0),"") -> 300 | C32: =IFERROR(f(ROW(A2),БДМ№2!$C$5:$C$43,БДМ№2!$C$53:$C$91),"") -> Мишук Р.В. | D32: =IFERROR(f(ROW(B2),БДМ№2!$D$5:$D$43,БДМ№2!$D$53:$D$91),"") -> Ап.пр.хим.р-в 3 р. % | AJ32: =SUM(IF(RIGHTB(D32)="%",TEXT(INDEX(E$5:AI32,MATCH(LEFTB(C32,SEARCH("%",D32)),(C$5:C32),),),"0;0;12")*E32:AI32%,E32:AI32)) -> 0
B33: =IFERROR(VLOOKUP(C33,Список!$B$2:$C$150,2,0),"") -> 2108 | C33: =IFERROR(f(ROW(A3),БДМ№2!$C$5:$C$43,БДМ№2!$C$53:$C$91),"") -> Макрицкий Ю.В. | D33: =IFERROR(f(ROW(B3),БДМ№2!$D$5:$D$43,БДМ№2!$D$53:$D$91),"") -> Машинист 6 р.
B34: =IFERROR(VLOOKUP(C34,Список!$B$2:$C$150,2,0),"") -> 2108 | C34: =IFERROR(f(ROW(A4),БДМ№2!$C$5:$C$43,БДМ№2!$C$53:$C$91),"") -> Макрицкий Ю.В. | D34: =IFERROR(f(ROW(B4),БДМ№2!$D$5:$D$43,БДМ№2!$D$53:$D$91),"") -> Маш.уп. маш. 2 р. %
B35: =IFERROR(VLOOKUP(C35,Список!$B$2:$C$150,2,0),"") -> 338 | C35: =IFERROR(f(ROW(A5),БДМ№2!$C$5:$C$43,БДМ№2!$C$53:$C$91),"") -> Романчук В.В. | D35: =IFERROR(f(ROW(B5),БДМ№2!$D$5:$D$43,БДМ№2!$D$53:$D$91),"") -> Разм. РПО 5 р.
B36: =IFERROR(VLOOKUP(C36,Список!$B$2:$C$150,2,0),"") -> 338 | C36: =IFERROR(f(ROW(A6),БДМ№2!$C$5:$C$43,БДМ№2!$C$53:$C$91),"") -> Романчук В.В. | D36: =IFERROR(f(ROW(B6),БДМ№2!$D$5:$D$43,БДМ№2!$D$53:$D$91),"") -> Разм. РПО 4 р. %
B37: =IFERROR(VLOOKUP(C37,Список!$B$2:$C$150,2,0),"") -> 2255 | C37: =IFERROR(f(ROW(A7),БДМ№2!$C$5:$C$43,БДМ№2!$C$53:$C$91),"") -> Петровых В.В. | D37: =IFERROR(f(ROW(B7),БДМ№2!$D$5:$D$43,БДМ№2!$D$53:$D$91),"") -> Резчик ПРС 4 р.
B38: =IFERROR(VLOOKUP(C38,Список!$B$2:$C$150,2,0),"") -> 2255 | C38: =IFERROR(f(ROW(A8),БДМ№2!$C$5:$C$43,БДМ№2!$C$53:$C$91),"") -> Петровых В.В. | D38: =IFERROR(f(ROW(B8),БДМ№2!$D$5:$D$43,БДМ№2!$D$53:$D$91),"") -> Резчик ПРС 4 р. % | AJ38: =SUM(IF(RIGHTB(D38)="%",TEXT(INDEX(E$5:AI38,MATCH(LEFTB(C38,SEARCH("%",D38)),(C$5:C38),),),"0;0;12")*E38:AI38%,E38:AI38)) -> 0
B39: =IFERROR(VLOOKUP(C39,Список!$B$2:$C$150,2,0),"") ->  | C39: =IFERROR(f(ROW(A9),БДМ№2!$C$5:$C$43,БДМ№2!$C$53:$C$91),"") ->  | D39: =IFERROR(f(ROW(B9),БДМ№2!$D$5:$D$43,БДМ№2!$D$53:$D$91),"") ->  | AJ39: =SUM(IF(RIGHTB(D39)="%",TEXT(INDEX(E$5:AI39,MATCH(LEFTB(C39,SEARCH("%",D39)),(C$5:C39),),),"0;0;12")*E39:AI39%,E39:AI39)) -> 0
B40: =IFERROR(VLOOKUP(C40,Список!$B$2:$C$150,2,0),"") ->  | C40: =IFERROR(f(ROW(A10),БДМ№2!$C$5:$C$43,БДМ№2!$C$53:$C$91),"") ->  | D40: =IFERROR(f(ROW(B10),БДМ№2!$D$5:$D$43,БДМ№2!$D$53:$D$91),"") ->  | AJ40: =SUM(IF(RIGHTB(D40)="%",TEXT(INDEX(E$5:AI40,MATCH(LEFTB(C40,SEARCH("%",D40)),(C$5:C40),),),"0;0;12")*E40:AI40%,E40:AI40)) -> 0
B41: =IFERROR(VLOOKUP(C41,Список!$B$2:$C$150,2,0),"") ->  | C41: =IFERROR(f(ROW(A11),БДМ№2!$C$5:$C$43,БДМ№2!$C$53:$C$91),"") ->  | D41: =IFERROR(f(ROW(B11),БДМ№2!$D$5:$D$43,БДМ№2!$D$53:$D$91),"") ->  | AJ41: =SUM(IF(RIGHTB(D34)="%",TEXT(INDEX(E$5:AI41,MATCH(LEFTB(C34,SEARCH("%",D34)),(C$5:C40),),),"0;0;12")*E41:AI41%,E41:AI41)) -> 0
B42: =IFERROR(VLOOKUP(C42,Список!$B$2:$C$150,2,0),"") ->  | C42: =IFERROR(f(ROW(A12),БДМ№2!$C$5:$C$43,БДМ№2!$C$53:$C$91),"") ->  | D42: =IFERROR(f(ROW(B12),БДМ№2!$D$5:$D$43,БДМ№2!$D$53:$D$91),"") ->  | AJ42: =SUM(IF(RIGHTB(D42)="%",TEXT(INDEX(E$5:AI42,MATCH(LEFTB(C42,SEARCH("%",D42)),(C$5:C42),),),"0;0;12")*E42:AI42%,E42:AI42)) -> 0
B43: =IFERROR(VLOOKUP(C43,Список!$B$2:$C$150,2,0),"") ->  | C43: =IFERROR(f(ROW(A13),БДМ№2!$C$5:$C$43,БДМ№2!$C$53:$C$91),"") ->  | D43: =IFERROR(f(ROW(B13),БДМ№2!$D$5:$D$43,БДМ№2!$D$53:$D$91),"") ->  | AJ43: =SUM(IF(RIGHTB(D43)="%",TEXT(INDEX(E$5:AI43,MATCH(LEFTB(C43,SEARCH("%",D43)),(C$5:C43),),),"0;0;12")*E43:AI43%,E43:AI43)) -> 0
E45: Мастер смены: | O45: ___________ | S45: =TODAY() -> 2015-06-15

Sheet БДМ№1
I1: БДМ № 1 | O1: Для бригадного расчёта | AG1: бумажный цех
B3: Таб№ | C3: Фамилия, Имя, Отчество | E3: Отработано часов по числам месяца | AJ3: Часы
E4: 1 | F4: 2 | G4: 3 | H4: 4 | I4: 5 | J4: 6 | K4: 7 | L4: 8 | M4: 9 | N4: 10 | O4: 11 | P4: 12 | Q4: 13 | R4: 14 | S4: 15 | T4: 16 | U4: 17 | V4: 18 | W4: 19 | X4: 20 | Y4: 21 | Z4: 22 | AA4: 23 | AB4: 24 | AC4: 25 | AD4: 26 | AE4: 27 | AF4: 28 | AG4: 29 | AH4: 30 | AI4: 31
B5: =IFERROR(VLOOKUP(C5,Список!$B$2:$C$150,2,0),"") -> 465 | C5: Рудницкий С.Н. | D5: Разм. брака 2 р. | AJ5: =SUM(IF(RIGHTB(D5)="%",TEXT(INDEX(E$5:AI5,MATCH(LEFTB(C5,SEARCH("%",D5)),(C$5:C5),),),"0;0;12")*E5:AI5%,E5:AI5)) -> 0
B6: =IFERROR(VLOOKUP(C6,Список!$B$2:$C$150,2,0),"") -> 465 | C6: Рудницкий С.Н. | D6: Разм. брака 2 р. % | AJ6: =SUM(IF(RIGHTB(D6)="%",TEXT(INDEX(E$5:AI6,MATCH(LEFTB(C6,SEARCH("%",D6)),(C$5:C6),),),"0;0;12")*E6:AI6%,E6:AI6)) -> 0
B7: =IFERROR(VLOOKUP(C7,Список!$B$2:$C$150,2,0),"") ->  | AJ7: =SUM(IF(RIGHTB(D7)="%",TEXT(INDEX(E$5:AI7,MATCH(LEFTB(C7,SEARCH("%",D7)),(C$5:C7),),),"0;0;12")*E7:AI7%,E7:AI7)) -> 0
B8: =IFERROR(VLOOKUP(C8,Список!$B$2:$C$150,2,0),"") ->  | AJ8: =SUM(IF(RIGHTB(D8)="%",TEXT(INDEX(E$5:AI8,MATCH(LEFTB(C8,SEARCH("%",D8)),(C$5:C8),),),"0;0;12")*E8:AI8%,E8:AI8)) -> 0
B9: =IFERROR(VLOOKUP(C9,Список!$B$2:$C$150,2,0),"") -> 761 | C9: Сацук А.Л. | D9: Ап.пр.хим.р-в 3 р. | AJ9: =SUM(IF(RIGHTB(D9)="%",TEXT(INDEX(E$5:AI9,MATCH(LEFTB(C9,SEARCH("%",D9)),(C$5:C9),),),"0;0;12")*E9:AI9%,E9:AI9)) -> 0
B10: =IFERROR(VLOOKUP(C10,Список!$B$2:$C$150,2,0),"") -> 761 | C10: Сацук А.Л. | D10: Ап.пр.хим.р-в 3 р. % | AJ10: =SUM(IF(RIGHTB(D10)="%",TEXT(INDEX(E$5:AI10,MATCH(LEFTB(C10,SEARCH("%",D10)),(C$5:C10),),),"0;0;12")*E10:AI10%,E10:AI10)) -> 0
B11: =IFERROR(VLOOKUP(C11,Список!$B$2:$C$150,2,0),"") ->  | AJ11: =SUM(IF(RIGHTB(D11)="%",TEXT(INDEX(E$5:AI11,MATCH(LEFTB(C11,SEARCH("%",D11)),(C$5:C11),),),"0;0;12")*E11:AI11%,E11:AI11)) -> 0
B12: =IFERROR(VLOOKUP(C12,Список!$B$2:$C$150,2,0),"") ->  | AJ12: =SUM(IF(RIGHTB(D12)="%",TEXT(INDEX(E$5:AI12,MATCH(LEFTB(C12,SEARCH("%",D12)),(C$5:C12),),),"0;0;12")*E12:AI12%,E12:AI12)) -> 0
B13: =IFERROR(VLOOKUP(C13,Список!$B$2:$C$150,2,0),"") -> 643 | C13: Буракова Т.А. | D13: Перссовщик 3 р. | AJ13: =SUM(IF(RIGHTB(D13)="%",TEXT(INDEX(E$5:AI13,MATCH(LEFTB(C13,SEARCH("%",D13)),(C$5:C13),),),"0;0;12")*E13:AI13%,E13:AI13)) -> 0
B14: =IFERROR(VLOOKUP(C14,Список!$B$2:$C$150,2,0),"") ->  | AJ14: =SUM(IF(RIGHTB(D14)="%",TEXT(INDEX(E$5:AI14,MATCH(LEFTB(C14,SEARCH("%",D14)),(C$5:C14),),),"0;0;12")*E14:AI14%,E14:AI14)) -> 0
B15: =IFERROR(VLOOKUP(C15,Список!$B$2:$C$150,2,0),"") ->  | AJ15: =SUM(IF(RIGHTB(D15)="%",TEXT(INDEX(E$5:AI15,MATCH(LEFTB(C15,SEARCH("%",D15)),(C$5:C15),),),"0;0;12")*E15:AI15%,E15:AI15)) -> 0
B16: =IFERROR(VLOOKUP(C16,Список!$B$2:$C$150,2,0),"") ->  | AJ16: =SUM(IF(RIGHTB(D16)="%",TEXT(INDEX(E$5:AI16,MATCH(LEFTB(C16,SEARCH("%",D16)),(C$5:C16),),),"0;0;12")*E16:AI16%,E16:AI16)) -> 0
B17: =IFERROR(VLOOKUP(C17,Список!$B$2:$C$150,2,0),"") -> 1179 | C17: Брикун М.А. | D17: Сушильщик 4 р. | AJ17: =SUM(IF(RIGHTB(D17)="%",TEXT(INDEX(E$5:AI17,MATCH(LEFTB(C17,SEARCH("%",D17)),(C$5:C17),),),"0;0;12")*E17:AI17%,E17:AI17)) -> 0
B18: =IFERROR(VLOOKUP(C18,Список!$B$2:$C$150,2,0),"") -> 1179 | C18: Брикун М.А. | D18: Перссовщик 3 р. % | AJ18: =SUM(IF(RIGHTB(D18)="%",TEXT(INDEX(E$5:AI18,MATCH(LEFTB(C18,SEARCH("%",D18)),(C$5:C18),),),"0;0;12")*E18:AI18%,E18:AI18)) -> 0
B19: =IFERROR(VLOOKUP(C19,Список!$B$2:$C$150,2,0),"") ->  | AJ19: =SUM(IF(RIGHTB(D19)="%",TEXT(INDEX(E$5:AI19,MATCH(LEFTB(C19,SEARCH("%",D19)),(C$5:C19),),),"0;0;12")*E19:AI19%,E19:AI19)) -> 0
B20: =IFERROR(VLOOKUP(C20,Список!$B$2:$C$150,2,0),"") ->  | AJ20: =SUM(IF(RIGHTB(D20)="%",TEXT(INDEX(E$5:AI20,MATCH(LEFTB(C20,SEARCH("%",D20)),(C$5:C20),),),"0;0;12")*E20:AI20%,E20:AI20)) -> 0
B21: =IFERROR(VLOOKUP(C21,Список!$B$2:$C$150,2,0),"") -> 1291 | C21: Лысковец А.Н. | D21: Накатчик 3 р. | AJ21: =SUM(IF(RIGHTB(D21)="%",TEXT(INDEX(E$5:AI21,MATCH(LEFTB(C21,SEARCH("%",D21)),(C$5:C21),),),"0;0;12")*E21:AI21%,E21:AI21)) -> 0
B22: =IFERROR(VLOOKUP(C22,Список!$B$2:$C$150,2,0),"") ->  | AJ22: =SUM(IF(RIGHTB(D22)="%",TEXT(INDEX(E$5:AI22,MATCH(LEFTB(C22,SEARCH("%",D22)),(C$5:C22),),),"0;0;12")*E22:AI22%,E22:AI22)) -> 0
B23: =IFERROR(VLOOKUP(C23,Список!$B$2:$C$150,2,0),"") ->  | AJ23: =SUM(IF(RIGHTB(D23)="%",TEXT(INDEX(E$5:AI23,MATCH(LEFTB(C23,SEARCH("%",D23)),(C$5:C23),),),"0;0;12")*E23:AI23%,E23:AI23)) -> 0
B24: =IFERROR(VLOOKUP(C24,Список!$B$2:$C$150,2,0),"") ->  | AJ24: =SUM(IF(RIGHTB(D24)="%",TEXT(INDEX(E$5:AI24,MATCH(LEFTB(C24,SEARCH("%",D24)),(C$5:C24),),),"0;0;12")*E24:AI24%,E24:AI24)) -> 0
B25: =IFERROR(VLOOKUP(C25,Список!$B$2:$C$150,2,0),"") ->  | AJ25: =SUM(IF(RIGHTB(D25)="%",TEXT(INDEX(E$5:AI25,MATCH(LEFTB(C25,SEARCH("%",D25)),(C$5:C25),),),"0;0;12")*E25:AI25%,E25:AI25)) -> 0
B26: =IFERROR(VLOOKUP(C26,Список!$B$2:$C$150,2,0),"") ->  | AJ26: =SUM(IF(RIGHTB(D26)="%",TEXT(INDEX(E$5:AI26,MATCH(LEFTB(C26,SEARCH("%",D26)),(C$5:C26),),),"0;0;12")*E26:AI26%,E26:AI26)) -> 0
B27: =IFERROR(VLOOKUP(C27,Список!$B$2:$C$150,2,0),"") ->  | AJ27: =SUM(IF(RIGHTB(D27)="%",TEXT(INDEX(E$5:AI27,MATCH(LEFTB(C27,SEARCH("%",D27)),(C$5:C27),),),"0;0;12")*E27:AI27%,E27:AI27)) -> 0
B28: =IFERROR(VLOOKUP(C28,Список!$B$2:$C$150,2,0),"") ->  | AJ28: =SUM(IF(RIGHTB(D28)="%",TEXT(INDEX(E$5:AI28,MATCH(LEFTB(C28,SEARCH("%",D28)),(C$5:C28),),),"0;0;12")*E28:AI28%,E28:AI28)) -> 0
B29: =IFERROR(VLOOKUP(C29,Список!$B$2:$C$150,2,0),"") ->  | AJ29: =SUM(IF(RIGHTB(D29)="%",TEXT(INDEX(E$5:AI29,MATCH(LEFTB(C29,SEARCH("%",D29)),(C$5:C29),),),"0;0;12")*E29:AI29%,E29:AI29)) -> 0
B30: =IFERROR(VLOOKUP(C30,Список!$B$2:$C$150,2,0),"") ->  | AJ30: =SUM(IF(RIGHTB(D30)="%",TEXT(INDEX(E$5:AI30,MATCH(LEFTB(C30,SEARCH("%",D30)),(C$5:C30),),),"0;0;12")*E30:AI30%,E30:AI30)) -> 0
B31: =IFERROR(VLOOKUP(C31,Список!$B$2:$C$150,2,0),"") ->  | AJ31: =SUM(IF(RIGHTB(D31)="%",TEXT(INDEX(E$5:AI31,MATCH(LEFTB(C31,SEARCH("%",D31)),(C$5:C31),),),"0;0;12")*E31:AI31%,E31:AI31)) -> 0
B32: =IFERROR(VLOOKUP(C32,Список!$B$2:$C$150,2,0),"") ->  | AJ32: =SUM(IF(RIGHTB(D32)="%",TEXT(INDEX(E$5:AI32,MATCH(LEFTB(C32,SEARCH("%",D32)),(C$5:C32),),),"0;0;12")*E32:AI32%,E32:AI32)) -> 0
B33: =IFERROR(VLOOKUP(C33,Список!$B$2:$C$150,2,0),"") ->  | AJ33: =SUM(IF(RIGHTB(D33)="%",TEXT(INDEX(E$5:AI33,MATCH(LEFTB(C33,SEARCH("%",D33)),(C$5:C33),),),"0;0;12")*E33:AI33%,E33:AI33)) -> 0
B34: =IFERROR(VLOOKUP(C34,Список!$B$2:$C$150,2,0),"") ->  | AJ34: =SUM(IF(RIGHTB(D34)="%",TEXT(INDEX(E$5:AI34,MATCH(LEFTB(C34,SEARCH("%",D34)),(C$5:C34),),),"0;0;12")*E34:AI34%,E34:AI34)) -> 0
B35: =IFERROR(VLOOKUP(C35,Список!$B$2:$C$150,2,0),"") ->  | AJ35: =SUM(IF(RIGHTB(D35)="%",TEXT(INDEX(E$5:AI35,MATCH(LEFTB(C35,SEARCH("%",D35)),(C$5:C35),),),"0;0;12")*E35:AI35%,E35:AI35)) -> 0
B36: =IFERROR(VLOOKUP(C36,Список!$B$2:$C$150,2,0),"") ->  | AJ36: =SUM(IF(RIGHTB(D36)="%",TEXT(INDEX(E$5:AI36,MATCH(LEFTB(C36,SEARCH("%",D36)),(C$5:C36),),),"0;0;12")*E36:AI36%,E36:AI36)) -> 0
B37: =IFERROR(VLOOKUP(C37,Список!$B$2:$C$150,2,0),"") ->  | AJ37: =SUM(IF(RIGHTB(D37)="%",TEXT(INDEX(E$5:AI37,MATCH(LEFTB(C37,SEARCH("%",D37)),(C$5:C37),),),"0;0;12")*E37:AI37%,E37:AI37)) -> 0
B38: =IFERROR(VLOOKUP(C38,Список!$B$2:$C$150,2,0),"") ->  | AJ38: =SUM(IF(RIGHTB(D38)="%",TEXT(INDEX(E$5:AI38,MATCH(LEFTB(C38,SEARCH("%",D38)),(C$5:C38),),),"0;0;12")*E38:AI38%,E38:AI38)) -> 0
B39: =IFERROR(VLOOKUP(C39,Список!$B$2:$C$150,2,0),"") ->  | AJ39: =SUM(IF(RIGHTB(D39)="%",TEXT(INDEX(E$5:AI39,MATCH(LEFTB(C39,SEARCH("%",D39)),(C$5:C39),),),"0;0;12")*E39:AI39%,E39:AI39)) -> 0
B40: =IFERROR(VLOOKUP(C40,Список!$B$2:$C$150,2,0),"") ->  | AJ40: =SUM(IF(RIGHTB(D40)="%",TEXT(INDEX(E$5:AI40,MATCH(LEFTB(C40,SEARCH("%",D40)),(C$5:C40),),),"0;0;12")*E40:AI40%,E40:AI40)) -> 0
B41: =IFERROR(VLOOKUP(C41,Список!$B$2:$C$150,2,0),"") ->  | AJ41: =SUM(IF(RIGHTB(D41)="%",TEXT(INDEX(E$5:AI41,MATCH(LEFTB(C41,SEARCH("%",D41)),(C$5:C41),),),"0;0;12")*E41:AI41%,E41:AI41)) -> 0
B42: =IFERROR(VLOOKUP(C42,Список!$B$2:$C$150,2,0),"") ->  | AJ42: =SUM(IF(RIGHTB(D42)="%",TEXT(INDEX(E$5:AI42,MATCH(LEFTB(C42,SEARCH("%",D42)),(C$5:C42),),),"0;0;12")*E42:AI42%,E42:AI42)) -> 0
B43: =IFERROR(VLOOKUP(C43,Список!$B$2:$C$150,2,0),"") ->  | AJ43: =SUM(IF(RIGHTB(D43)="%",TEXT(INDEX(E$5:AI43,MATCH(LEFTB(C43,SEARCH("%",D43)),(C$5:C43),),),"0;0;12")*E43:AI43%,E43:AI43)) -> 0
E45: Мастер смены: | O45: ___________ | S45: =TODAY() -> 2015-06-15
I49: БДМ № 1 | O49: Для бригадного расчёта | AG49: бумажный цех
B51: Таб№ | C51: Фамилия, Имя, Отчество | E51: Отработано часов по числам месяца | AJ51: Часы
E52: 1 | F52: 2 | G52: 3 | H52: 4 | I52: 5 | J52: 6 | K52: 7 | L52: 8 | M52: 9 | N52: 10 | O52: 11 | P52: 12 | Q52: 13 | R52: 14 | S52: 15 | T52: 16 | U52: 17 | V52: 18 | W52: 19 | X52: 20 | Y52: 21 | Z52: 22 | AA52: 23 | AB52: 24 | AC52: 25 | AD52: 26 | AE52: 27 | AF52: 28 | AG52: 29 | AH52: 30 | AI52: 31
B53: =IFERROR(VLOOKUP(C53,Список!$B$2:$C$150,2,0),"") -> 1379 | C53: Кадевич О.В. | D53: Маш.уп. маш. 2 р. | AJ53: =SUM(IF(RIGHTB(D53)="%",TEXT(INDEX(E$53:AI53,MATCH(LEFTB(C53,SEARCH("%",D53)),(C$53:C53),),),"0;0;12")*E53:AI53%,E53:AI53)) -> 0
B54: =IFERROR(VLOOKUP(C54,Список!$B$2:$C$150,2,0),"") ->  | AJ54: =SUM(IF(RIGHTB(D54)="%",TEXT(INDEX(E$53:AI54,MATCH(LEFTB(C54,SEARCH("%",D54)),(C$53:C54),),),"0;0;12")*E54:AI54%,E54:AI54)) -> 0
B55: =IFERROR(VLOOKUP(C55,Список!$B$2:$C$150,2,0),"") ->  | AJ55: =SUM(IF(RIGHTB(D55)="%",TEXT(INDEX(E$53:AI55,MATCH(LEFTB(C55,SEARCH("%",D55)),(C$53:C55),),),"0;0;12")*E55:AI55%,E55:AI55)) -> 0
B56: =IFERROR(VLOOKUP(C56,Список!$B$2:$C$150,2,0),"") -> 589 | C56: Хомич Н.Н. | D56: Маш.уп. маш. 2 р. | AJ56: =SUM(IF(RIGHTB(D56)="%",TEXT(INDEX(E$53:AI56,MATCH(LEFTB(C56,SEARCH("%",D56)),(C$53:C56),),),"0;0;12")*E56:AI56%,E56:AI56)) -> 0
B57: =IFERROR(VLOOKUP(C57,Список!$B$2:$C$150,2,0),"") -> 589 | C57: Хомич Н.Н. | D57: Ап.пр.хим.р-в 3 р. % | AJ57: =SUM(IF(RIGHTB(D57)="%",TEXT(INDEX(E$53:AI57,MATCH(LEFTB(C57,SEARCH("%",D57)),(C$53:C57),),),"0;0;12")*E57:AI57%,E57:AI57)) -> 0
B58: =IFERROR(VLOOKUP(C58,Список!$B$2:$C$150,2,0),"") ->  | AJ58: =SUM(IF(RIGHTB(D58)="%",TEXT(INDEX(E$53:AI58,MATCH(LEFTB(C58,SEARCH("%",D58)),(C$53:C58),),),"0;0;12")*E58:AI58%,E58:AI58)) -> 0
B59: =IFERROR(VLOOKUP(C59,Список!$B$2:$C$150,2,0),"") ->  | AJ59: =SUM(IF(RIGHTB(D59)="%",TEXT(INDEX(E$53:AI59,MATCH(LEFTB(C59,SEARCH("%",D59)),(C$53:C59),),),"0;0;12")*E59:AI59%,E59:AI59)) -> 0
B60: =IFERROR(VLOOKUP(C60,Список!$B$2:$C$150,2,0),"") ->  | AJ60: =SUM(IF(RIGHTB(D60)="%",TEXT(INDEX(E$53:AI60,MATCH(LEFTB(C60,SEARCH("%",D60)),(C$53:C60),),),"0;0;12")*E60:AI60%,E60:AI60)) -> 0
B61: =IFERROR(VLOOKUP(C61,Список!$B$2:$C$150,2,0),"") ->  | AJ61: =SUM(IF(RIGHTB(D61)="%",TEXT(INDEX(E$53:AI61,MATCH(LEFTB(C61,SEARCH("%",D61)),(C$53:C61),),),"0;0;12")*E61:AI61%,E61:AI61)) -> 0
B62: =IFERROR(VLOOKUP(C62,Список!$B$2:$C$150,2,0),"") ->  | AJ62: =SUM(IF(RIGHTB(D62)="%",TEXT(INDEX(E$53:AI62,MATCH(LEFTB(C62,SEARCH("%",D62)),(C$53:C62),),),"0;0;12")*E62:AI62%,E62:AI62)) -> 0
B63: =IFERROR(VLOOKUP(C63,Список!$B$2:$C$150,2,0),"") ->  | AJ63: =SUM(IF(RIGHTB(D63)="%",TEXT(INDEX(E$53:AI63,MATCH(LEFTB(C63,SEARCH("%",D63)),(C$53:C63),),),"0;0;12")*E63:AI63%,E63:AI63)) -> 0
B64: =IFERROR(VLOOKUP(C64,Список!$B$2:$C$150,2,0),"") ->  | AJ64: =SUM(IF(RIGHTB(D64)="%",TEXT(INDEX(E$53:AI64,MATCH(LEFTB(C64,SEARCH("%",D64)),(C$53:C64),),),"0;0;12")*E64:AI64%,E64:AI64)) -> 0
B65: =IFERROR(VLOOKUP(C65,Список!$B$2:$C$150,2,0),"") ->  | AJ65: =SUM(IF(RIGHTB(D65)="%",TEXT(INDEX(E$53:AI65,MATCH(LEFTB(C65,SEARCH("%",D65)),(C$53:C65),),),"0;0;12")*E65:AI65%,E65:AI65)) -> 0
B66: =IFERROR(VLOOKUP(C66,Список!$B$2:$C$150,2,0),"") ->  | AJ66: =SUM(IF(RIGHTB(D66)="%",TEXT(INDEX(E$53:AI66,MATCH(LEFTB(C66,SEARCH("%",D66)),(C$53:C66),),),"0;0;12")*E66:AI66%,E66:AI66)) -> 0
B67: =IFERROR(VLOOKUP(C67,Список!$B$2:$C$150,2,0),"") ->  | AJ67: =SUM(IF(RIGHTB(D67)="%",TEXT(INDEX(E$53:AI67,MATCH(LEFTB(C67,SEARCH("%",D67)),(C$53:C67),),),"0;0;12")*E67:AI67%,E67:AI67)) -> 0
B68: =IFERROR(VLOOKUP(C68,Список!$B$2:$C$150,2,0),"") ->  | AJ68: =SUM(IF(RIGHTB(D68)="%",TEXT(INDEX(E$53:AI68,MATCH(LEFTB(C68,SEARCH("%",D68)),(C$53:C68),),),"0;0;12")*E68:AI68%,E68:AI68)) -> 0
B69: =IFERROR(VLOOKUP(C69,Список!$B$2:$C$150,2,0),"") ->  | AJ69: =SUM(IF(RIGHTB(D69)="%",TEXT(INDEX(E$53:AI69,MATCH(LEFTB(C69,SEARCH("%",D69)),(C$53:C69),),),"0;0;12")*E69:AI69%,E69:AI69)) -> 0
B70: =IFERROR(VLOOKUP(C70,Список!$B$2:$C$150,2,0),"") ->  | AJ70: =SUM(IF(RIGHTB(D70)="%",TEXT(INDEX(E$53:AI70,MATCH(LEFTB(C70,SEARCH("%",D70)),(C$53:C70),),),"0;0;12")*E70:AI70%,E70:AI70)) -> 0
B71: =IFERROR(VLOOKUP(C71,Список!$B$2:$C$150,2,0),"") ->  | AJ71: =SUM(IF(RIGHTB(D71)="%",TEXT(INDEX(E$53:AI71,MATCH(LEFTB(C71,SEARCH("%",D71)),(C$53:C71),),),"0;0;12")*E71:AI71%,E71:AI71)) -> 0
B72: =IFERROR(VLOOKUP(C72,Список!$B$2:$C$150,2,0),"") ->  | AJ72: =SUM(IF(RIGHTB(D72)="%",TEXT(INDEX(E$53:AI72,MATCH(LEFTB(C72,SEARCH("%",D72)),(C$53:C72),),),"0;0;12")*E72:AI72%,E72:AI72)) -> 0
B73: =IFERROR(VLOOKUP(C73,Список!$B$2:$C$150,2,0),"") ->  | AJ73: =SUM(IF(RIGHTB(D73)="%",TEXT(INDEX(E$53:AI73,MATCH(LEFTB(C73,SEARCH("%",D73)),(C$53:C73),),),"0;0;12")*E73:AI73%,E73:AI73)) -> 0
B74: =IFERROR(VLOOKUP(C74,Список!$B$2:$C$150,2,0),"") ->  | AJ74: =SUM(IF(RIGHTB(D74)="%",TEXT(INDEX(E$53:AI74,MATCH(LEFTB(C74,SEARCH("%",D74)),(C$53:C74),),),"0;0;12")*E74:AI74%,E74:AI74)) -> 0
B75: =IFERROR(VLOOKUP(C75,Список!$B$2:$C$150,2,0),"") ->  | AJ75: =SUM(IF(RIGHTB(D75)="%",TEXT(INDEX(E$53:AI75,MATCH(LEFTB(C75,SEARCH("%",D75)),(C$53:C75),),),"0;0;12")*E75:AI75%,E75:AI75)) -> 0
B76: =IFERROR(VLOOKUP(C76,Список!$B$2:$C$150,2,0),"") ->  | AJ76: =SUM(IF(RIGHTB(D76)="%",TEXT(INDEX(E$53:AI76,MATCH(LEFTB(C76,SEARCH("%",D76)),(C$53:C76),),),"0;0;12")*E76:AI76%,E76:AI76)) -> 0
B77: =IFERROR(VLOOKUP(C77,Список!$B$2:$C$150,2,0),"") ->  | AJ77: =SUM(IF(RIGHTB(D77)="%",TEXT(INDEX(E$53:AI77,MATCH(LEFTB(C77,SEARCH("%",D77)),(C$53:C77),),),"0;0;12")*E77:AI77%,E77:AI77)) -> 0
B78: =IFERROR(VLOOKUP(C78,Список!$B$2:$C$150,2,0),"") ->  | AJ78: =SUM(IF(RIGHTB(D78)="%",TEXT(INDEX(E$53:AI78,MATCH(LEFTB(C78,SEARCH("%",D78)),(C$53:C78),),),"0;0;12")*E78:AI78%,E78:AI78)) -> 0
B79: =IFERROR(VLOOKUP(C79,Список!$B$2:$C$150,2,0),"") ->  | AJ79: =SUM(IF(RIGHTB(D79)="%",TEXT(INDEX(E$53:AI79,MATCH(LEFTB(C79,SEARCH("%",D79)),(C$53:C79),),),"0;0;12")*E79:AI79%,E79:AI79)) -> 0
B80: =IFERROR(VLOOKUP(C80,Список!$B$2:$C$150,2,0),"") ->  | AJ80: =SUM(IF(RIGHTB(D80)="%",TEXT(INDEX(E$53:AI80,MATCH(LEFTB(C80,SEARCH("%",D80)),(C$53:C80),),),"0;0;12")*E80:AI80%,E80:AI80)) -> 0
B81: =IFERROR(VLOOKUP(C81,Список!$B$2:$C$150,2,0),"") ->  | AJ81: =SUM(IF(RIGHTB(D81)="%",TEXT(INDEX(E$53:AI81,MATCH(LEFTB(C81,SEARCH("%",D81)),(C$53:C81),),),"0;0;12")*E81:AI81%,E81:AI81)) -> 0
B82: =IFERROR(VLOOKUP(C82,Список!$B$2:$C$150,2,0),"") ->  | AJ82: =SUM(IF(RIGHTB(D82)="%",TEXT(INDEX(E$53:AI82,MATCH(LEFTB(C82,SEARCH("%",D82)),(C$53:C82),),),"0;0;12")*E82:AI82%,E82:AI82)) -> 0
B83: =IFERROR(VLOOKUP(C83,Список!$B$2:$C$150,2,0),"") ->  | AJ83: =SUM(IF(RIGHTB(D83)="%",TEXT(INDEX(E$53:AI83,MATCH(LEFTB(C83,SEARCH("%",D83)),(C$53:C83),),),"0;0;12")*E83:AI83%,E83:AI83)) -> 0
B84: =IFERROR(VLOOKUP(C84,Список!$B$2:$C$150,2,0),"") ->  | AJ84: =SUM(IF(RIGHTB(D84)="%",TEXT(INDEX(E$53:AI84,MATCH(LEFTB(C84,SEARCH("%",D84)),(C$53:C84),),),"0;0;12")*E84:AI84%,E84:AI84)) -> 0
B85: =IFERROR(VLOOKUP(C85,Список!$B$2:$C$150,2,0),"") ->  | AJ85: =SUM(IF(RIGHTB(D85)="%",TEXT(INDEX(E$53:AI85,MATCH(LEFTB(C85,SEARCH("%",D85)),(C$53:C85),),),"0;0;12")*E85:AI85%,E85:AI85)) -> 0
B86: =IFERROR(VLOOKUP(C86,Список!$B$2:$C$150,2,0),"") ->  | AJ86: =SUM(IF(RIGHTB(D86)="%",TEXT(INDEX(E$53:AI86,MATCH(LEFTB(C86,SEARCH("%",D86)),(C$53:C86),),),"0;0;12")*E86:AI86%,E86:AI86)) -> 0
B87: =IFERROR(VLOOKUP(C87,Список!$B$2:$C$150,2,0),"") ->  | AJ87: =SUM(IF(RIGHTB(D87)="%",TEXT(INDEX(E$53:AI87,MATCH(LEFTB(C87,SEARCH("%",D87)),(C$53:C87),),),"0;0;12")*E87:AI87%,E87:AI87)) -> 0
B88: =IFERROR(VLOOKUP(C88,Список!$B$2:$C$150,2,0),"") ->  | AJ88: =SUM(IF(RIGHTB(D88)="%",TEXT(INDEX(E$53:AI88,MATCH(LEFTB(C88,SEARCH("%",D88)),(C$53:C88),),),"0;0;12")*E88:AI88%,E88:AI88)) -> 0
B89: =IFERROR(VLOOKUP(C89,Список!$B$2:$C$150,2,0),"") ->  | AJ89: =SUM(IF(RIGHTB(D89)="%",TEXT(INDEX(E$53:AI89,MATCH(LEFTB(C89,SEARCH("%",D89)),(C$53:C89),),),"0;0;12")*E89:AI89%,E89:AI89)) -> 0
B90: =IFERROR(VLOOKUP(C90,Список!$B$2:$C$150,2,0),"") ->  | AJ90: =SUM(IF(RIGHTB(D90)="%",TEXT(INDEX(E$53:AI90,MATCH(LEFTB(C90,SEARCH("%",D90)),(C$53:C90),),),"0;0;12")*E90:AI90%,E90:AI90)) -> 0
B91: =IFERROR(VLOOKUP(C91,Список!$B$2:$C$150,2,0),"") ->  | AJ91: =SUM(IF(RIGHTB(D91)="%",TEXT(INDEX(E$53:AI91,MATCH(LEFTB(C91,SEARCH("%",D91)),(C$53:C91),),),"0;0;12")*E91:AI91%,E91:AI91)) -> 0
E93: Мастер смены: | O93: ___________ | S93: =TODAY() -> 2015-06-15

Sheet БДМ№2
I1: БДМ № 2 | O1: Для бригадного расчёта | AG1: бумажный цех
B3: Таб№ | C3: Фамилия, Имя, Отчество | E3: Отработано часов по числам месяца | AJ3: Часы
E4: 1 | F4: 2 | G4: 3 | H4: 4 | I4: 5 | J4: 6 | K4: 7 | L4: 8 | M4: 9 | N4: 10 | O4: 11 | P4: 12 | Q4: 13 | R4: 14 | S4: 15 | T4: 16 | U4: 17 | V4: 18 | W4: 19 | X4: 20 | Y4: 21 | Z4: 22 | AA4: 23 | AB4: 24 | AC4: 25 | AD4: 26 | AE4: 27 | AF4: 28 | AG4: 29 | AH4: 30 | AI4: 31
B5: =IFERROR(VLOOKUP(C5,Список!$B$2:$C$150,2,0),"") -> 300 | C5: Мишук Р.В. | D5: Машинист 6 р. | AJ5: =SUM(IF(RIGHTB(D5)="%",TEXT(INDEX(E$5:AI5,MATCH(LEFTB(C5,SEARCH("%",D5)),(C$5:C5),),),"0;0;12")*E5:AI5%,E5:AI5)) -> 0
B6: =IFERROR(VLOOKUP(C6,Список!$B$2:$C$150,2,0),"") -> 300 | C6: Мишук Р.В. | D6: Ап.пр.хим.р-в 3 р. % | AJ6: =SUM(IF(RIGHTB(D6)="%",TEXT(INDEX(E$5:AI6,MATCH(LEFTB(C6,SEARCH("%",D6)),(C$5:C6),),),"0;0;12")*E6:AI6%,E6:AI6)) -> 0
B7: =IFERROR(VLOOKUP(C7,Список!$B$2:$C$150,2,0),"") ->  | AJ7: =SUM(IF(RIGHTB(D7)="%",TEXT(INDEX(E$5:AI7,MATCH(LEFTB(C7,SEARCH("%",D7)),(C$5:C7),),),"0;0;12")*E7:AI7%,E7:AI7)) -> 0
B8: =IFERROR(VLOOKUP(C8,Список!$B$2:$C$150,2,0),"") ->  | AJ8: =SUM(IF(RIGHTB(D8)="%",TEXT(INDEX(E$5:AI8,MATCH(LEFTB(C8,SEARCH("%",D8)),(C$5:C8),),),"0;0;12")*E8:AI8%,E8:AI8)) -> 0
B9: =IFERROR(VLOOKUP(C9,Список!$B$2:$C$150,2,0),"") -> 2108 | C9: Макрицкий Ю.В. | D9: Машинист 6 р. | AJ9: =SUM(IF(RIGHTB(D9)="%",TEXT(INDEX(E$5:AI9,MATCH(LEFTB(C9,SEARCH("%",D9)),(C$5:C9),),),"0;0;12")*E9:AI9%,E9:AI9)) -> 0
B10: =IFERROR(VLOOKUP(C10,Список!$B$2:$C$150,2,0),"") -> 2108 | C10: Макрицкий Ю.В. | D10: Маш.уп. маш. 2 р. % | AJ10: =SUM(IF(RIGHTB(D10)="%",TEXT(INDEX(E$5:AI10,MATCH(LEFTB(C10,SEARCH("%",D10)),(C$5:C10),),),"0;0;12")*E10:AI10%,E10:AI10)) -> 0
B11: =IFERROR(VLOOKUP(C11,Список!$B$2:$C$150,2,0),"") ->  | AJ11: =SUM(IF(RIGHTB(D11)="%",TEXT(INDEX(E$5:AI11,MATCH(LEFTB(C11,SEARCH("%",D11)),(C$5:C11),),),"0;0;12")*E11:AI11%,E11:AI11)) -> 0
B12: =IFERROR(VLOOKUP(C12,Список!$B$2:$C$150,2,0),"") ->  | AJ12: =SUM(IF(RIGHTB(D12)="%",TEXT(INDEX(E$5:AI12,MATCH(LEFTB(C12,SEARCH("%",D12)),(C$5:C12),),),"0;0;12")*E12:AI12%,E12:AI12)) -> 0
B13: =IFERROR(VLOOKUP(C13,Список!$B$2:$C$150,2,0),"") ->  | AJ13: =SUM(IF(RIGHTB(D13)="%",TEXT(INDEX(E$5:AI13,MATCH(LEFTB(C13,SEARCH("%",D13)),(C$5:C13),),),"0;0;12")*E13:AI13%,E13:AI13)) -> 0
B14: =IFERROR(VLOOKUP(C14,Список!$B$2:$C$150,2,0),"") -> 338 | C14: Романчук В.В. | D14: Разм. РПО 5 р. | AJ14: =SUM(IF(RIGHTB(D14)="%",TEXT(INDEX(E$5:AI14,MATCH(LEFTB(C14,SEARCH("%",D14)),(C$5:C14),),),"0;0;12")*E14:AI14%,E14:AI14)) -> 0
B15: =IFERROR(VLOOKUP(C15,Список!$B$2:$C$150,2,0),"") -> 338 | C15: Романчук В.В. | D15: Разм. РПО 4 р. % | AJ15: =SUM(IF(RIGHTB(D15)="%",TEXT(INDEX(E$5:AI15,MATCH(LEFTB(C15,SEARCH("%",D15)),(C$5:C15),),),"0;0;12")*E15:AI15%,E15:AI15)) -> 0
B16: =IFERROR(VLOOKUP(C16,Список!$B$2:$C$150,2,0),"") ->  | AJ16: =SUM(IF(RIGHTB(D16)="%",TEXT(INDEX(E$5:AI16,MATCH(LEFTB(C16,SEARCH("%",D16)),(C$5:C16),),),"0;0;12")*E16:AI16%,E16:AI16)) -> 0
B17: =IFERROR(VLOOKUP(C17,Список!$B$2:$C$150,2,0),"") ->  | AJ17: =SUM(IF(RIGHTB(D17)="%",TEXT(INDEX(E$5:AI17,MATCH(LEFTB(C17,SEARCH("%",D17)),(C$5:C17),),),"0;0;12")*E17:AI17%,E17:AI17)) -> 0
B18: =IFERROR(VLOOKUP(C18,Список!$B$2:$C$150,2,0),"") ->  | AJ18: =SUM(IF(RIGHTB(D18)="%",TEXT(INDEX(E$5:AI18,MATCH(LEFTB(C18,SEARCH("%",D18)),(C$5:C18),),),"0;0;12")*E18:AI18%,E18:AI18)) -> 0
B19: =IFERROR(VLOOKUP(C19,Список!$B$2:$C$150,2,0),"") -> 2255 | C19: Петровых В.В. | D19: Резчик ПРС 4 р. | AJ19: =SUM(IF(RIGHTB(D19)="%",TEXT(INDEX(E$5:AI19,MATCH(LEFTB(C19,SEARCH("%",D19)),(C$5:C19),),),"0;0;12")*E19:AI19%,E19:AI19)) -> 0
B20: =IFERROR(VLOOKUP(C20,Список!$B$2:$C$150,2,0),"") -> 2255 | C20: Петровых В.В. | D20: Резчик ПРС 4 р. % | AJ20: =SUM(IF(RIGHTB(D20)="%",TEXT(INDEX(E$5:AI20,MATCH(LEFTB(C20,SEARCH("%",D20)),(C$5:C20),),),"0;0;12")*E20:AI20%,E20:AI20)) -> 0
B21: =IFERROR(VLOOKUP(C21,Список!$B$2:$C$150,2,0),"") ->  | AJ21: =SUM(IF(RIGHTB(D21)="%",TEXT(INDEX(E$5:AI21,MATCH(LEFTB(C21,SEARCH("%",D21)),(C$5:C21),),),"0;0;12")*E21:AI21%,E21:AI21)) -> 0
B22: =IFERROR(VLOOKUP(C22,Список!$B$2:$C$150,2,0),"") ->  | AJ22: =SUM(IF(RIGHTB(D22)="%",TEXT(INDEX(E$5:AI22,MATCH(LEFTB(C22,SEARCH("%",D22)),(C$5:C22),),),"0;0;12")*E22:AI22%,E22:AI22)) -> 0
B23: =IFERROR(VLOOKUP(C23,Список!$B$2:$C$150,2,0),"") ->  | AJ23: =SUM(IF(RIGHTB(D23)="%",TEXT(INDEX(E$5:AI23,MATCH(LEFTB(C23,SEARCH("%",D23)),(C$5:C23),),),"0;0;12")*E23:AI23%,E23:AI23)) -> 0
B24: =IFERROR(VLOOKUP(C24,Список!$B$2:$C$150,2,0),"") ->  | AJ24: =SUM(IF(RIGHTB(D24)="%",TEXT(INDEX(E$5:AI24,MATCH(LEFTB(C24,SEARCH("%",D24)),(C$5:C24),),),"0;0;12")*E24:AI24%,E24:AI24)) -> 0
B25: =IFERROR(VLOOKUP(C25,Список!$B$2:$C$150,2,0),"") ->  | AJ25: =SUM(IF(RIGHTB(D25)="%",TEXT(INDEX(E$5:AI25,MATCH(LEFTB(C25,SEARCH("%",D25)),(C$5:C25),),),"0;0;12")*E25:AI25%,E25:AI25)) -> 0
B26: =IFERROR(VLOOKUP(C26,Список!$B$2:$C$150,2,0),"") ->  | AJ26: =SUM(IF(RIGHTB(D26)="%",TEXT(INDEX(E$5:AI26,MATCH(LEFTB(C26,SEARCH("%",D26)),(C$5:C26),),),"0;0;12")*E26:AI26%,E26:AI26)) -> 0
B27: =IFERROR(VLOOKUP(C27,Список!$B$2:$C$150,2,0),"") ->  | AJ27: =SUM(IF(RIGHTB(D27)="%",TEXT(INDEX(E$5:AI27,MATCH(LEFTB(C27,SEARCH("%",D27)),(C$5:C27),),),"0;0;12")*E27:AI27%,E27:AI27)) -> 0
B28: =IFERROR(VLOOKUP(C28,Список!$B$2:$C$150,2,0),"") ->  | AJ28: =SUM(IF(RIGHTB(D28)="%",TEXT(INDEX(E$5:AI28,MATCH(LEFTB(C28,SEARCH("%",D28)),(C$5:C28),),),"0;0;12")*E28:AI28%,E28:AI28)) -> 0
B29: =IFERROR(VLOOKUP(C29,Список!$B$2:$C$150,2,0),"") ->  | AJ29: =SUM(IF(RIGHTB(D29)="%",TEXT(INDEX(E$5:AI29,MATCH(LEFTB(C29,SEARCH("%",D29)),(C$5:C29),),),"0;0;12")*E29:AI29%,E29:AI29)) -> 0
B30: =IFERROR(VLOOKUP(C30,Список!$B$2:$C$150,2,0),"") ->  | AJ30: =SUM(IF(RIGHTB(D30)="%",TEXT(INDEX(E$5:AI30,MATCH(LEFTB(C30,SEARCH("%",D30)),(C$5:C30),),),"0;0;12")*E30:AI30%,E30:AI30)) -> 0
B31: =IFERROR(VLOOKUP(C31,Список!$B$2:$C$150,2,0),"") ->  | AJ31: =SUM(IF(RIGHTB(D31)="%",TEXT(INDEX(E$5:AI31,MATCH(LEFTB(C31,SEARCH("%",D31)),(C$5:C31),),),"0;0;12")*E31:AI31%,E31:AI31)) -> 0
B32: =IFERROR(VLOOKUP(C32,Список!$B$2:$C$150,2,0),"") ->  | AJ32: =SUM(IF(RIGHTB(D32)="%",TEXT(INDEX(E$5:AI32,MATCH(LEFTB(C32,SEARCH("%",D32)),(C$5:C32),),),"0;0;12")*E32:AI32%,E32:AI32)) -> 0
B33: =IFERROR(VLOOKUP(C33,Список!$B$2:$C$150,2,0),"") ->  | AJ33: =SUM(IF(RIGHTB(D33)="%",TEXT(INDEX(E$5:AI33,MATCH(LEFTB(C33,SEARCH("%",D33)),(C$5:C33),),),"0;0;12")*E33:AI33%,E33:AI33)) -> 0
B34: =IFERROR(VLOOKUP(C34,Список!$B$2:$C$150,2,0),"") ->  | AJ34: =SUM(IF(RIGHTB(D34)="%",TEXT(INDEX(E$5:AI34,MATCH(LEFTB(C34,SEARCH("%",D34)),(C$5:C34),),),"0;0;12")*E34:AI34%,E34:AI34)) -> 0
B35: =IFERROR(VLOOKUP(C35,Список!$B$2:$C$150,2,0),"") ->  | AJ35: =SUM(IF(RIGHTB(D35)="%",TEXT(INDEX(E$5:AI35,MATCH(LEFTB(C35,SEARCH("%",D35)),(C$5:C35),),),"0;0;12")*E35:AI35%,E35:AI35)) -> 0
B36: =IFERROR(VLOOKUP(C36,Список!$B$2:$C$150,2,0),"") ->  | AJ36: =SUM(IF(RIGHTB(D36)="%",TEXT(INDEX(E$5:AI36,MATCH(LEFTB(C36,SEARCH("%",D36)),(C$5:C36),),),"0;0;12")*E36:AI36%,E36:AI36)) -> 0
B37: =IFERROR(VLOOKUP(C37,Список!$B$2:$C$150,2,0),"") ->  | AJ37: =SUM(IF(RIGHTB(D37)="%",TEXT(INDEX(E$5:AI37,MATCH(LEFTB(C37,SEARCH("%",D37)),(C$5:C37),),),"0;0;12")*E37:AI37%,E37:AI37)) -> 0
B38: =IFERROR(VLOOKUP(C38,Список!$B$2:$C$150,2,0),"") ->  | AJ38: =SUM(IF(RIGHTB(D38)="%",TEXT(INDEX(E$5:AI38,MATCH(LEFTB(C38,SEARCH("%",D38)),(C$5:C38),),),"0;0;12")*E38:AI38%,E38:AI38)) -> 0
B39: =IFERROR(VLOOKUP(C39,Список!$B$2:$C$150,2,0),"") ->  | AJ39: =SUM(IF(RIGHTB(D39)="%",TEXT(INDEX(E$5:AI39,MATCH(LEFTB(C39,SEARCH("%",D39)),(C$5:C39),),),"0;0;12")*E39:AI39%,E39:AI39)) -> 0
B40: =IFERROR(VLOOKUP(C40,Список!$B$2:$C$150,2,0),"") ->  | AJ40: =SUM(IF(RIGHTB(D40)="%",TEXT(INDEX(E$5:AI40,MATCH(LEFTB(C40,SEARCH("%",D40)),(C$5:C40),),),"0;0;12")*E40:AI40%,E40:AI40)) -> 0
B41: =IFERROR(VLOOKUP(C41,Список!$B$2:$C$150,2,0),"") ->  | AJ41: =SUM(IF(RIGHTB(D41)="%",TEXT(INDEX(E$5:AI41,MATCH(LEFTB(C41,SEARCH("%",D41)),(C$5:C41),),),"0;0;12")*E41:AI41%,E41:AI41)) -> 0
B42: =IFERROR(VLOOKUP(C42,Список!$B$2:$C$150,2,0),"") ->  | AJ42: =SUM(IF(RIGHTB(D42)="%",TEXT(INDEX(E$5:AI42,MATCH(LEFTB(C42,SEARCH("%",D42)),(C$5:C42),),),"0;0;12")*E42:AI42%,E42:AI42)) -> 0
B43: =IFERROR(VLOOKUP(C43,Список!$B$2:$C$150,2,0),"") ->  | AJ43: =SUM(IF(RIGHTB(D43)="%",TEXT(INDEX(E$5:AI43,MATCH(LEFTB(C43,SEARCH("%",D43)),(C$5:C43),),),"0;0;12")*E43:AI43%,E43:AI43)) -> 0
E45: Мастер смены: | O45: ___________ | S45: =TODAY() -> 2015-06-15

Sheet Всего по сменам
B4: Таб№ | C4: Фамилия, Имя, Отчество | E4: БВГ | F4: Наряд,час | G4: СЛА | H4: БАВ | I4: ХНН | J4: Всего по сменам | K4: Общий табель
B5: =IFERROR(VLOOKUP(C5,Список!$B$2:$C$150,2,0),"") -> 465 | C5: =IFERROR(f(ROW(A1),БДМ№1!$C$5:$C$43,БДМ№1!$C$53:$C$91,БДМ№2!$C$5:$C$43),"") -> Рудницкий С.Н. | D5: =IFERROR(f(ROW(A1),БДМ№1!$D$5:$D$43,БДМ№1!$D$53:$D$91,БДМ№2!$D$5:$D$43),"") -> Разм. брака 2 р. | J5: =SUM(E5:I5) -> 0
B6: =IFERROR(VLOOKUP(C6,Список!$B$2:$C$150,2,0),"") -> 465 | C6: =IFERROR(f(ROW(A2),БДМ№1!$C$5:$C$43,БДМ№1!$C$53:$C$91,БДМ№2!$C$5:$C$43),"") -> Рудницкий С.Н. | D6: =IFERROR(f(ROW(A2),БДМ№1!$D$5:$D$43,БДМ№1!$D$53:$D$91,БДМ№2!$D$5:$D$43),"") -> Разм. брака 2 р. % | E6: =SUMIFS(Останов!$AJ$5:$AJ$43,Останов!$C$5:$C$43,C6,Останов!$D$5:$D$43,D6)+SUMIFS(БДМ№1!$AJ$5:$AJ$91,БДМ№1!$C$5:$C$91,C6,БДМ№1!$D$5:$D$91,D6)+SUMIFS(БДМ№2!$AJ$5:$AJ$91,БДМ№2!$C$5:$C$91,C6,БДМ№2!$D$5:$D$91,D6) -> 0 | J6: =SUM(E6:I6) -> 0
B7: =IFERROR(VLOOKUP(C7,Список!$B$2:$C$150,2,0),"") -> 761 | C7: =IFERROR(f(ROW(A3),БДМ№1!$C$5:$C$43,БДМ№1!$C$53:$C$91,БДМ№2!$C$5:$C$43),"") -> Сацук А.Л. | D7: =IFERROR(f(ROW(A3),БДМ№1!$D$5:$D$43,БДМ№1!$D$53:$D$91,БДМ№2!$D$5:$D$43),"") -> Ап.пр.хим.р-в 3 р. | E7: =SUMIFS(Останов!$AJ$5:$AJ$43,Останов!$C$5:$C$43,C7,Останов!$D$5:$D$43,D7)+SUMIFS(БДМ№1!$AJ$5:$AJ$91,БДМ№1!$C$5:$C$91,C7,БДМ№1!$D$5:$D$91,D7)+SUMIFS(БДМ№2!$AJ$5:$AJ$91,БДМ№2!$C$5:$C$91,C7,БДМ№2!$D$5:$D$91,D7) -> 0 | J7: 0
B8: =IFERROR(VLOOKUP(C8,Список!$B$2:$C$150,2,0),"") -> 761 | C8: =IFERROR(f(ROW(A4),БДМ№1!$C$5:$C$43,БДМ№1!$C$53:$C$91,БДМ№2!$C$5:$C$43),"") -> Сацук А.Л. | D8: =IFERROR(f(ROW(A4),БДМ№1!$D$5:$D$43,БДМ№1!$D$53:$D$91,БДМ№2!$D$5:$D$43),"") -> Ап.пр.хим.р-в 3 р. % | E8: =SUMIFS(Останов!$AJ$5:$AJ$43,Останов!$C$5:$C$43,C8,Останов!$D$5:$D$43,D8)+SUMIFS(БДМ№1!$AJ$5:$AJ$91,БДМ№1!$C$5:$C$91,C8,БДМ№1!$D$5:$D$91,D8)+SUMIFS(БДМ№2!$AJ$5:$AJ$91,БДМ№2!$C$5:$C$91,C8,БДМ№2!$D$5:$D$91,D8) -> 0 | J8: 0 | L8: Здравствуйте! Подскажите как исправить или дополнить. В столбец C и D с листа БДМ№1 и БДМ№2 копируются все фамилии с профессиями кроме тех фамилий с профессиями у которых есть знак "%". Для примера: красной строки не должно быть. Таким же образом формируется список на лист "Останов" с небольшим произвольным разрывом (12-15 строк). Не получается: 1. связать все три таблицы ("БДМ№1"-2 шт. и "БДМ№2"-1 шт.) одной формулой. 2. В листе "Всего по сменам"убрать из списка строку со знаком "%" не сместив фамилии. 3. Продолжить список фамилий с листа "БДМ№2" в листе Останов.
B9: =IFERROR(VLOOKUP(C9,Список!$B$2:$C$150,2,0),"") -> 643 | C9: =IFERROR(f(ROW(A5),БДМ№1!$C$5:$C$43,БДМ№1!$C$53:$C$91,БДМ№2!$C$5:$C$43),"") -> Буракова Т.А. | D9: =IFERROR(f(ROW(A5),БДМ№1!$D$5:$D$43,БДМ№1!$D$53:$D$91,БДМ№2!$D$5:$D$43),"") -> Перссовщик 3 р. | E9: =SUMIFS(Останов!$AJ$5:$AJ$43,Останов!$C$5:$C$43,C9,Останов!$D$5:$D$43,D9)+SUMIFS(БДМ№1!$AJ$5:$AJ$91,БДМ№1!$C$5:$C$91,C9,БДМ№1!$D$5:$D$91,D9)+SUMIFS(БДМ№2!$AJ$5:$AJ$91,БДМ№2!$C$5:$C$91,C9,БДМ№2!$D$5:$D$91,D9) -> 0 | J9: 0
B10: =IFERROR(VLOOKUP(C10,Список!$B$2:$C$150,2,0),"") -> 1179 | C10: =IFERROR(f(ROW(A6),БДМ№1!$C$5:$C$43,БДМ№1!$C$53:$C$91,БДМ№2!$C$5:$C$43),"") -> Брикун М.А. | D10: =IFERROR(f(ROW(A6),БДМ№1!$D$5:$D$43,БДМ№1!$D$53:$D$91,БДМ№2!$D$5:$D$43),"") -> Сушильщик 4 р. | E10: =SUMIFS(Останов!$AJ$5:$AJ$43,Останов!$C$5:$C$43,C10,Останов!$D$5:$D$43,D10)+SUMIFS(БДМ№1!$AJ$5:$AJ$91,БДМ№1!$C$5:$C$91,C10,БДМ№1!$D$5:$D$91,D10)+SUMIFS(БДМ№2!$AJ$5:$AJ$91,БДМ№2!$C$5:$C$91,C10,БДМ№2!$D$5:$D$91,D10) -> 0 | J10: 0
B11: =IFERROR(VLOOKUP(C11,Список!$B$2:$C$150,2,0),"") -> 1179 | C11: =IFERROR(f(ROW(A7),БДМ№1!$C$5:$C$43,БДМ№1!$C$53:$C$91,БДМ№2!$C$5:$C$43),"") -> Брикун М.А. | D11: =IFERROR(f(ROW(A7),БДМ№1!$D$5:$D$43,БДМ№1!$D$53:$D$91,БДМ№2!$D$5:$D$43),"") -> Перссовщик 3 р. % | E11: =SUMIFS(Останов!$AJ$5:$AJ$43,Останов!$C$5:$C$43,C11,Останов!$D$5:$D$43,D11)+SUMIFS(БДМ№1!$AJ$5:$AJ$91,БДМ№1!$C$5:$C$91,C11,БДМ№1!$D$5:$D$91,D11)+SUMIFS(БДМ№2!$AJ$5:$AJ$91,БДМ№2!$C$5:$C$91,C11,БДМ№2!$D$5:$D$91,D11) -> 0 | J11: 0
B12: =IFERROR(VLOOKUP(C12,Список!$B$2:$C$150,2,0),"") -> 1291 | C12: =IFERROR(f(ROW(A8),БДМ№1!$C$5:$C$43,БДМ№1!$C$53:$C$91,БДМ№2!$C$5:$C$43),"") -> Лысковец А.Н. | D12: =IFERROR(f(ROW(A8),БДМ№1!$D$5:$D$43,БДМ№1!$D$53:$D$91,БДМ№2!$D$5:$D$43),"") -> Накатчик 3 р. | E12: =SUMIFS(Останов!$AJ$5:$AJ$43,Останов!$C$5:$C$43,C12,Останов!$D$5:$D$43,D12)+SUMIFS(БДМ№1!$AJ$5:$AJ$91,БДМ№1!$C$5:$C$91,C12,БДМ№1!$D$5:$D$91,D12)+SUMIFS(БДМ№2!$AJ$5:$AJ$91,БДМ№2!$C$5:$C$91,C12,БДМ№2!$D$5:$D$91,D12) -> 0 | J12: 0
B13: =IFERROR(VLOOKUP(C13,Список!$B$2:$C$150,2,0),"") -> 1379 | C13: =IFERROR(f(ROW(A9),БДМ№1!$C$5:$C$43,БДМ№1!$C$53:$C$91,БДМ№2!$C$5:$C$43),"") -> Кадевич О.В. | D13: =IFERROR(f(ROW(A9),БДМ№1!$D$5:$D$43,БДМ№1!$D$53:$D$91,БДМ№2!$D$5:$D$43),"") -> Маш.уп. маш. 2 р. | E13: =SUMIFS(Останов!$AJ$5:$AJ$43,Останов!$C$5:$C$43,C13,Останов!$D$5:$D$43,D13)+SUMIFS(БДМ№1!$AJ$5:$AJ$91,БДМ№1!$C$5:$C$91,C13,БДМ№1!$D$5:$D$91,D13)+SUMIFS(БДМ№2!$AJ$5:$AJ$91,БДМ№2!$C$5:$C$91,C13,БДМ№2!$D$5:$D$91,D13) -> 0 | J13: 0
B14: =IFERROR(VLOOKUP(C14,Список!$B$2:$C$150,2,0),"") -> 589 | C14: =IFERROR(f(ROW(A10),БДМ№1!$C$5:$C$43,БДМ№1!$C$53:$C$91,БДМ№2!$C$5:$C$43),"") -> Хомич Н.Н. | D14: =IFERROR(f(ROW(A10),БДМ№1!$D$5:$D$43,БДМ№1!$D$53:$D$91,БДМ№2!$D$5:$D$43),"") -> Маш.уп. маш. 2 р. | E14: =SUMIFS(Останов!$AJ$5:$AJ$43,Останов!$C$5:$C$43,C14,Останов!$D$5:$D$43,D14)+SUMIFS(БДМ№1!$AJ$5:$AJ$91,БДМ№1!$C$5:$C$91,C14,БДМ№1!$D$5:$D$91,D14)+SUMIFS(БДМ№2!$AJ$5:$AJ$91,БДМ№2!$C$5:$C$91,C14,БДМ№2!$D$5:$D$91,D14) -> 0 | J14: 0
B15: =IFERROR(VLOOKUP(C15,Список!$B$2:$C$150,2,0),"") -> 589 | C15: =IFERROR(f(ROW(A11),БДМ№1!$C$5:$C$43,БДМ№1!$C$53:$C$91,БДМ№2!$C$5:$C$43),"") -> Хомич Н.Н. | D15: =IFERROR(f(ROW(A11),БДМ№1!$D$5:$D$43,БДМ№1!$D$53:$D$91,БДМ№2!$D$5:$D$43),"") -> Ап.пр.хим.р-в 3 р. % | E15: =SUMIFS(Останов!$AJ$5:$AJ$43,Останов!$C$5:$C$43,C15,Останов!$D$5:$D$43,D15)+SUMIFS(БДМ№1!$AJ$5:$AJ$91,БДМ№1!$C$5:$C$91,C15,БДМ№1!$D$5:$D$91,D15)+SUMIFS(БДМ№2!$AJ$5:$AJ$91,БДМ№2!$C$5:$C$91,C15,БДМ№2!$D$5:$D$91,D15) -> 0 | J15: 0
B16: =IFERROR(VLOOKUP(C16,Список!$B$2:$C$150,2,0),"") -> 300 | C16: =IFERROR(f(ROW(A12),БДМ№1!$C$5:$C$43,БДМ№1!$C$53:$C$91,БДМ№2!$C$5:$C$43),"") -> Мишук Р.В. | D16: =IFERROR(f(ROW(A12),БДМ№1!$D$5:$D$43,БДМ№1!$D$53:$D$91,БДМ№2!$D$5:$D$43),"") -> Машинист 6 р. | E16: =SUMIFS(Останов!$AJ$5:$AJ$43,Останов!$C$5:$C$43,C16,Останов!$D$5:$D$43,D16)+SUMIFS(БДМ№1!$AJ$5:$AJ$91,БДМ№1!$C$5:$C$91,C16,БДМ№1!$D$5:$D$91,D16)+SUMIFS(БДМ№2!$AJ$5:$AJ$91,БДМ№2!$C$5:$C$91,C16,БДМ№2!$D$5:$D$91,D16) -> 0 | J16: 0
B17: =IFERROR(VLOOKUP(C17,Список!$B$2:$C$150,2,0),"") -> 300 | C17: =IFERROR(f(ROW(A13),БДМ№1!$C$5:$C$43,БДМ№1!$C$53:$C$91,БДМ№2!$C$5:$C$43),"") -> Мишук Р.В. | D17: =IFERROR(f(ROW(A13),БДМ№1!$D$5:$D$43,БДМ№1!$D$53:$D$91,БДМ№2!$D$5:$D$43),"") -> Ап.пр.хим.р-в 3 р. % | E17: =SUMIFS(Останов!$AJ$5:$AJ$43,Останов!$C$5:$C$43,C17,Останов!$D$5:$D$43,D17)+SUMIFS(БДМ№1!$AJ$5:$AJ$91,БДМ№1!$C$5:$C$91,C17,БДМ№1!$D$5:$D$91,D17)+SUMIFS(БДМ№2!$AJ$5:$AJ$91,БДМ№2!$C$5:$C$91,C17,БДМ№2!$D$5:$D$91,D17) -> 0 | J17: 0
B18: =IFERROR(VLOOKUP(C18,Список!$B$2:$C$150,2,0),"") -> 2108 | C18: =IFERROR(f(ROW(A14),БДМ№1!$C$5:$C$43,БДМ№1!$C$53:$C$91,БДМ№2!$C$5:$C$43),"") -> Макрицкий Ю.В. | D18: =IFERROR(f(ROW(A14),БДМ№1!$D$5:$D$43,БДМ№1!$D$53:$D$91,БДМ№2!$D$5:$D$43),"") -> Машинист 6 р. | E18: =SUMIFS(Останов!$AJ$5:$AJ$43,Останов!$C$5:$C$43,C18,Останов!$D$5:$D$43,D18)+SUMIFS(БДМ№1!$AJ$5:$AJ$91,БДМ№1!$C$5:$C$91,C18,БДМ№1!$D$5:$D$91,D18)+SUMIFS(БДМ№2!$AJ$5:$AJ$91,БДМ№2!$C$5:$C$91,C18,БДМ№2!$D$5:$D$91,D18) -> 0 | J18: 0
B19: =IFERROR(VLOOKUP(C19,Список!$B$2:$C$150,2,0),"") -> 2108 | C19: =IFERROR(f(ROW(A15),БДМ№1!$C$5:$C$43,БДМ№1!$C$53:$C$91,БДМ№2!$C$5:$C$43),"") -> Макрицкий Ю.В. | D19: =IFERROR(f(ROW(A15),БДМ№1!$D$5:$D$43,БДМ№1!$D$53:$D$91,БДМ№2!$D$5:$D$43),"") -> Маш.уп. маш. 2 р. % | E19: =SUMIFS(Останов!$AJ$5:$AJ$43,Останов!$C$5:$C$43,C19,Останов!$D$5:$D$43,D19)+SUMIFS(БДМ№1!$AJ$5:$AJ$91,БДМ№1!$C$5:$C$91,C19,БДМ№1!$D$5:$D$91,D19)+SUMIFS(БДМ№2!$AJ$5:$AJ$91,БДМ№2!$C$5:$C$91,C19,БДМ№2!$D$5:$D$91,D19) -> 0 | J19: 0
B20: =IFERROR(VLOOKUP(C20,Список!$B$2:$C$150,2,0),"") -> 338 | C20: =IFERROR(f(ROW(A16),БДМ№1!$C$5:$C$43,БДМ№1!$C$53:$C$91,БДМ№2!$C$5:$C$43),"") -> Романчук В.В. | D20: =IFERROR(f(ROW(A16),БДМ№1!$D$5:$D$43,БДМ№1!$D$53:$D$91,БДМ№2!$D$5:$D$43),"") -> Разм. РПО 5 р. | E20: =SUMIFS(Останов!$AJ$5:$AJ$43,Останов!$C$5:$C$43,C20,Останов!$D$5:$D$43,D20)+SUMIFS(БДМ№1!$AJ$5:$AJ$91,БДМ№1!$C$5:$C$91,C20,БДМ№1!$D$5:$D$91,D20)+SUMIFS(БДМ№2!$AJ$5:$AJ$91,БДМ№2!$C$5:$C$91,C20,БДМ№2!$D$5:$D$91,D20) -> 0 | J20: 0
B21: =IFERROR(VLOOKUP(C21,Список!$B$2:$C$150,2,0),"") -> 338 | C21: =IFERROR(f(ROW(A17),БДМ№1!$C$5:$C$43,БДМ№1!$C$53:$C$91,БДМ№2!$C$5:$C$43),"") -> Романчук В.В. | D21: =IFERROR(f(ROW(A17),БДМ№1!$D$5:$D$43,БДМ№1!$D$53:$D$91,БДМ№2!$D$5:$D$43),"") -> Разм. РПО 4 р. % | E21: =SUMIFS(Останов!$AJ$5:$AJ$43,Останов!$C$5:$C$43,C21,Останов!$D$5:$D$43,D21)+SUMIFS(БДМ№1!$AJ$5:$AJ$91,БДМ№1!$C$5:$C$91,C21,БДМ№1!$D$5:$D$91,D21)+SUMIFS(БДМ№2!$AJ$5:$AJ$91,БДМ№2!$C$5:$C$91,C21,БДМ№2!$D$5:$D$91,D21) -> 0 | J21: 0
B22: =IFERROR(VLOOKUP(C22,Список!$B$2:$C$150,2,0),"") -> 2255 | C22: =IFERROR(f(ROW(A18),БДМ№1!$C$5:$C$43,БДМ№1!$C$53:$C$91,БДМ№2!$C$5:$C$43),"") -> Петровых В.В. | D22: =IFERROR(f(ROW(A18),БДМ№1!$D$5:$D$43,БДМ№1!$D$53:$D$91,БДМ№2!$D$5:$D$43),"") -> Резчик ПРС 4 р. | E22: =SUMIFS(Останов!$AJ$5:$AJ$43,Останов!$C$5:$C$43,C22,Останов!$D$5:$D$43,D22)+SUMIFS(БДМ№1!$AJ$5:$AJ$91,БДМ№1!$C$5:$C$91,C22,БДМ№1!$D$5:$D$91,D22)+SUMIFS(БДМ№2!$AJ$5:$AJ$91,БДМ№2!$C$5:$C$91,C22,БДМ№2!$D$5:$D$91,D22) -> 0 | J22: 0
B23: =IFERROR(VLOOKUP(C23,Список!$B$2:$C$150,2,0),"") -> 2255 | C23: =IFERROR(f(ROW(A19),БДМ№1!$C$5:$C$43,БДМ№1!$C$53:$C$91,БДМ№2!$C$5:$C$43),"") -> Петровых В.В. | D23: =IFERROR(f(ROW(A19),БДМ№1!$D$5:$D$43,БДМ№1!$D$53:$D$91,БДМ№2!$D$5:$D$43),"") -> Резчик ПРС 4 р. % | E23: =SUMIFS(Останов!$AJ$5:$AJ$43,Останов!$C$5:$C$43,C23,Останов!$D$5:$D$43,D23)+SUMIFS(БДМ№1!$AJ$5:$AJ$91,БДМ№1!$C$5:$C$91,C23,БДМ№1!$D$5:$D$91,D23)+SUMIFS(БДМ№2!$AJ$5:$AJ$91,БДМ№2!$C$5:$C$91,C23,БДМ№2!$D$5:$D$91,D23) -> 0 | F23: =IF(RIGHT(D23)<>"%",IFERROR(f(ROW(B19),БДМ№1!$D$5:$D$43,БДМ№1!$D$53:$D$91),""),IFERROR(f(ROW()+ROW($D$5:$D$5)+1+COUNTBLANK($D$5:$D$34),БДМ№1!$D$5:$D$43,БДМ№1!$D$53:$D$91),"")) ->  | J23: 0
B24: =IFERROR(VLOOKUP(C24,Список!$B$2:$C$150,2,0),"") ->  | C24: =IFERROR(f(ROW(A20),БДМ№1!$C$5:$C$43,БДМ№1!$C$53:$C$91,БДМ№2!$C$5:$C$43),"") ->  | D24: =IFERROR(f(ROW(A20),БДМ№1!$D$5:$D$43,БДМ№1!$D$53:$D$91,БДМ№2!$D$5:$D$43),"") ->  | E24: =SUMIFS(Останов!$AJ$5:$AJ$43,Останов!$C$5:$C$43,C24,Останов!$D$5:$D$43,D24)+SUMIFS(БДМ№1!$AJ$5:$AJ$91,БДМ№1!$C$5:$C$91,C24,БДМ№1!$D$5:$D$91,D24)+SUMIFS(БДМ№2!$AJ$5:$AJ$91,БДМ№2!$C$5:$C$91,C24,БДМ№2!$D$5:$D$91,D24) -> 0 | F24: =IF(RIGHT(D24)<>"%",IFERROR(f(ROW(B20),БДМ№1!$D$5:$D$43,БДМ№1!$D$53:$D$91),""),IFERROR(f(ROW()+ROW($D$5:$D$5)+1+COUNTBLANK($D$5:$D$34),БДМ№1!$D$5:$D$43,БДМ№1!$D$53:$D$91),"")) ->  | J24: 0
B25: =IFERROR(VLOOKUP(C25,Список!$B$2:$C$150,2,0),"") ->  | C25: =IFERROR(f(ROW(A21),БДМ№1!$C$5:$C$43,БДМ№1!$C$53:$C$91,БДМ№2!$C$5:$C$43),"") ->  | D25: =IFERROR(f(ROW(A21),БДМ№1!$D$5:$D$43,БДМ№1!$D$53:$D$91,БДМ№2!$D$5:$D$43),"") ->  | E25: на этот лист копируется весь список фамилий с листа БДМ№1 и БДМ№2 кроме фамилий у которых профессия заканчивается знаком "%". Строки которых быть не должно подсвечены красным цветом. | J25: 0
B26: =IFERROR(VLOOKUP(C26,Список!$B$2:$C$150,2,0),"") ->  | C26: =IFERROR(f(ROW(A22),БДМ№1!$C$5:$C$43,БДМ№1!$C$53:$C$91,БДМ№2!$C$5:$C$43),"") ->  | D26: =IFERROR(f(ROW(A22),БДМ№1!$D$5:$D$43,БДМ№1!$D$53:$D$91,БДМ№2!$D$5:$D$43),"") ->  | J26: 0
B27: =IFERROR(VLOOKUP(C27,Список!$B$2:$C$150,2,0),"") ->  | C27: =IFERROR(f(ROW(A23),БДМ№1!$C$5:$C$43,БДМ№1!$C$53:$C$91,БДМ№2!$C$5:$C$43),"") ->  | D27: =IFERROR(f(ROW(A23),БДМ№1!$D$5:$D$43,БДМ№1!$D$53:$D$91,БДМ№2!$D$5:$D$43),"") ->  | J27: =SUM(E27:I27) -> 0
B28: =IFERROR(VLOOKUP(C28,Список!$B$2:$C$150,2,0),"") ->  | C28: =IFERROR(f(ROW(A24),БДМ№1!$C$5:$C$43,БДМ№1!$C$53:$C$91,БДМ№2!$C$5:$C$43),"") ->  | D28: =IFERROR(f(ROW(A24),БДМ№1!$D$5:$D$43,БДМ№1!$D$53:$D$91,БДМ№2!$D$5:$D$43),"") ->  | J28: 0
B29: =IFERROR(VLOOKUP(C29,Список!$B$2:$C$150,2,0),"") ->  | C29: =IFERROR(f(ROW(A25),БДМ№1!$C$5:$C$43,БДМ№1!$C$53:$C$91,БДМ№2!$C$5:$C$43),"") ->  | D29: =IFERROR(f(ROW(A25),БДМ№1!$D$5:$D$43,БДМ№1!$D$53:$D$91,БДМ№2!$D$5:$D$43),"") ->  | J29: 0
B30: =IFERROR(VLOOKUP(C30,Список!$B$2:$C$150,2,0),"") ->  | C30: =IFERROR(f(ROW(A26),БДМ№1!$C$5:$C$43,БДМ№1!$C$53:$C$91,БДМ№2!$C$5:$C$43),"") ->  | D30: =IFERROR(f(ROW(A26),БДМ№1!$D$5:$D$43,БДМ№1!$D$53:$D$91,БДМ№2!$D$5:$D$43),"") ->  | J30: 0
B31: =IFERROR(VLOOKUP(C31,Список!$B$2:$C$150,2,0),"") ->  | C31: =IFERROR(f(ROW(A27),БДМ№1!$C$5:$C$43,БДМ№1!$C$53:$C$91,БДМ№2!$C$5:$C$43),"") ->  | D31: =IFERROR(f(ROW(A27),БДМ№1!$D$5:$D$43,БДМ№1!$D$53:$D$91,БДМ№2!$D$5:$D$43),"") ->  | J31: 0
B32: =IFERROR(VLOOKUP(C32,Список!$B$2:$C$150,2,0),"") ->  | C32: =IFERROR(f(ROW(A28),БДМ№1!$C$5:$C$43,БДМ№1!$C$53:$C$91,БДМ№2!$C$5:$C$43),"") ->  | D32: =IFERROR(f(ROW(A28),БДМ№1!$D$5:$D$43,БДМ№1!$D$53:$D$91,БДМ№2!$D$5:$D$43),"") ->  | J32: 0
B33: =IFERROR(VLOOKUP(C33,Список!$B$2:$C$150,2,0),"") ->  | C33: =IFERROR(f(ROW(A29),БДМ№1!$C$5:$C$43,БДМ№1!$C$53:$C$91,БДМ№2!$C$5:$C$43),"") ->  | D33: =IFERROR(f(ROW(A29),БДМ№1!$D$5:$D$43,БДМ№1!$D$53:$D$91,БДМ№2!$D$5:$D$43),"") ->  | E33: =SUMIFS(Останов!$AJ$5:$AJ$43,Останов!$C$5:$C$43,C33,Останов!$D$5:$D$43,D33)+SUMIFS(БДМ№1!$AJ$5:$AJ$91,БДМ№1!$C$5:$C$91,C33,БДМ№1!$D$5:$D$91,D33)+SUMIFS(БДМ№2!$AJ$5:$AJ$91,БДМ№2!$C$5:$C$91,C33,БДМ№2!$D$5:$D$91,D33) -> 0 | F33: =IF(RIGHT(D33)<>"%",IFERROR(f(ROW(B29),БДМ№1!$D$5:$D$43,БДМ№1!$D$53:$D$91),""),IFERROR(f(ROW()+ROW($D$5:$D$5)+1+COUNTBLANK($D$5:$D$34),БДМ№1!$D$5:$D$43,БДМ№1!$D$53:$D$91),"")) ->  | J33: 0
B34: =IFERROR(VLOOKUP(C34,Список!$B$2:$C$150,2,0),"") ->  | C34: =IFERROR(f(ROW(A30),БДМ№1!$C$5:$C$43,БДМ№1!$C$53:$C$91,БДМ№2!$C$5:$C$43),"") ->  | D34: =IFERROR(f(ROW(A30),БДМ№1!$D$5:$D$43,БДМ№1!$D$53:$D$91,БДМ№2!$D$5:$D$43),"") ->  | E34: =SUMIFS(Останов!$AJ$5:$AJ$43,Останов!$C$5:$C$43,C34,Останов!$D$5:$D$43,D34)+SUMIFS(БДМ№1!$AJ$5:$AJ$91,БДМ№1!$C$5:$C$91,C34,БДМ№1!$D$5:$D$91,D34)+SUMIFS(БДМ№2!$AJ$5:$AJ$91,БДМ№2!$C$5:$C$91,C34,БДМ№2!$D$5:$D$91,D34) -> 0 | F34: =IF(RIGHT(D34)<>"%",IFERROR(f(ROW(B30),БДМ№1!$D$5:$D$43,БДМ№1!$D$53:$D$91),""),IFERROR(f(ROW()+ROW($D$5:$D$5)+1+COUNTBLANK($D$5:$D$34),БДМ№1!$D$5:$D$43,БДМ№1!$D$53:$D$91),"")) ->  | J34: =SUM(E34:I34) -> 0

Sheet Формулы (hidden)
B2: Образец формул для копирования:
B4: 1. Одно совмещение . (т.е. формула считает только одну строку совмещение). Выглядит так : часы/сто процентов*совмещение в процентах + следующий день повторяется аналогично.
B6: Таб№ | C6: Фамилия, Имя, Отчество | E6: Отработано часов по числам месяца | AJ6: Часы
E7: 1 | F7: 2 | G7: 3 | H7: 4 | I7: 5 | J7: 6 | K7: 7 | L7: 8 | M7: 9 | N7: 10 | O7: 11 | P7: 12 | Q7: 13 | R7: 14 | S7: 15 | T7: 16 | U7: 17 | V7: 18 | W7: 19 | X7: 20 | Y7: 21 | Z7: 22 | AA7: 23 | AB7: 24 | AC7: 25 | AD7: 26 | AE7: 27 | AF7: 28 | AG7: 29 | AH7: 30 | AI7: 31
B8: 300 | C8: Мишук Р.В. Машинист 6 р. | F8: 10 | I8: 10 | J8: 12 | M8: 8 | N8: 8 | V8: 8 | AC8: 8 | AD8: 8 | AJ8: =SUM(E8:AI8) -> 72
B9: 300 | C9: Мишук Р.В. Сушильщик 4 р. | I9: 50 | J9: 50 | V9: 50 | AJ9: =E8*E9/100+F8*F9/100+G8*G9/100+H8*H9/100+I8*I9/100+J8*J9/100+K8*K9/100+L8*L9/100+M8*M9/100+N8*N9/100+O8*O9/100+P8*P9/100+Q8*Q9/100+R8*R9/100+S8*S9/100+T8*T9/100+U8*U9/100+V8*V9/100+W8*W9/100+X8*X9/100+Y8*Y9/100+Z8*Z9/100+AA8*AA9/100+AB8*AB9/100+AC8*AC9/100+AD8*AD9/100+AE8*AE9/100+AF8*AF9/100+AG8*AG9/100+AH8*AH9/100+AI8*AI9/100 -> 15
B11: 2. Два совмещения . (т.е. формула считает две строки совмещения).
B13: 2108 | C13: Макрицкий Ю.В. Машинист 6 р. | E13: 12 | F13: 10 | I13: 10 | J13: 12 | M13: 12 | N13: 12 | Q13: 12 | V13: 12 | Y13: 12 | Z13: 9.5 | AC13: 12 | AD13: 12 | AJ13: =SUM(E13:AI13) -> 137.5
B14: 2108 | C14: Макрицкий Ю.В. Размольщик 4 р.% | E14: 20 | F14: 20 | M14: 20 | N14: 20 | Q14: 20 | AC14: 20 | AD14: 20 | AJ14: =E13*E14/100+F13*F14/100+G13*G14/100+H13*H14/100+I13*I14/100+J13*J14/100+K13*K14/100+L13*L14/100+M13*M14/100+N13*N14/100+O13*O14/100+P13*P14/100+Q13*Q14/100+R13*R14/100+S13*S14/100+T13*T14/100+U13*U14/100+V13*V14/100+W13*W14/100+X13*X14/100+Y13*Y14/100+Z13*Z14/100+AA13*AA14/100+AB13*AB14/100+AC13*AC14/100+AD13*AD14/100+AE13*AE14/100+AF13*AF14/100+AG13*AG14/100+AH13*AH14/100+AI13*AI14/100 -> 16.4
B15: 2108 | C15: Макрицкий Ю.В. Сушильщик 4 р.% | I15: 50 | J15: 50 | V15: 50 | Y15: 50 | Z15: 50 | AJ15: =E13*E15/100+F13*F15/100+G13*G15/100+H13*H15/100+I13*I15/100+J13*J15/100+K13*K15/100+L13*L15/100+M13*M15/100+N13*N15/100+O13*O15/100+P13*P15/100+Q13*Q15/100+R13*R15/100+S13*S15/100+T13*T15/100+U13*U15/100+V13*V15/100+W13*W15/100+X13*X15/100+Y13*Y15/100+Z13*Z15/100+AA13*AA15/100+AB13*AB15/100+AC13*AC15/100+AD13*AD15/100+AE13*AE15/100+AF13*AF15/100+AG13*AG15/100+AH13*AH15/100+AI13*AI15/100 -> 27.75
B17: 3. Совмещение при резке рулонов другой смены. Выглядит так : общая сумма/сто процентов*12.
B19: 2255 | C19: Петровых В.В. Резчик 4 р. % | I19: 100 | J19: 100 | Q19: 100 | Y19: 50 | Z19: 100 | AJ19: =SUM(E19:AI19)*0.12 -> 54
B21: 4. Формула переводит числовое значение в сумму прописью (ячейки под числами дня доступны для редактирования)
B23: № | C23: Ф.И.О. | E23: 1 | F23: 2 | G23: 3 | H23: 4 | I23: 5 | J23: 6 | K23: 7 | L23: 8 | M23: 9 | N23: 10 | O23: 11 | P23: 12 | Q23: 13 | R23: 14 | S23: 15 | T23: 16 | U23: 17 | V23: 18 | W23: 19 | X23: 20 | Y23: 21 | Z23: 22 | AA23: 23 | AB23: 24 | AC23: 25 | AD23: 26 | AE23: 27 | AF23: 28 | AG23: 29 | AH23: 30 | AI23: 31
B24: 1 | C24: Рудницкий С.Н. Машинист 6 р. | J24: 2 | L24: 1 | M24: 1 | N24: 1 | O24: 1 | P24: 2 | S24: 2 | V24: 5 | W24: 55 | Y24: 8 | AJ24: =SUM(E24:AI24) -> 78
G26: Всего по отраслевым нормам выдано: | T26: =INDEX({"","сто ","двести ","триста ","четыреста ","пятьсот ","шестьсот ","семьсот ","восемьсот ","девятьсот "},MOD(TRUNC(AJ24/10^8),10)+1)&CHOOSE(MOD(TRUNC(AJ24/10^7),10)+1,"",INDEX({"десять ","одиннадцать ","двенадцать ","тринадцать ","четырнадцать ","пятнадцать ","шестнадцать ","семнадцать ","восемнадцать ","девятнадцать "},MOD(TRUNC(AJ24/10^6),10)+1),"двадцать ","тридцать ","сорок ","пятьдесят ","шестьдесят ","семьдесят ","восемьдесят ","девяносто ")&IF(MOD(TRUNC(AJ24/10^7),10)<>1,INDEX({"","один ","два ","три ","четыре ","пять ","шесть ","семь ","восемь ","девять "},MOD(TRUNC(AJ24/10^6),10)+1),"")&IF(MOD(TRUNC(AJ24/10^6),1000),"миллион"&IF(MOD(TRUNC(AJ24/10^7),10)=1,"ов ",VLOOKUP(MOD(TRUNC(AJ24/10^6),10),{0,"ов ";1," ";2,"а ";5,"ов "},2)),"")&INDEX({"","сто ","двести ","триста ","четыреста ","пятьсот ","шестьсот ","семьсот ","восемьсот ","девятьсот "},MOD(TRUNC(AJ24/10^5),10)+1)&CHOOSE(MOD(TRUNC(AJ24/10^4),10)+1,"",INDEX({"десять ","одиннадцать ","двенадцать ","тринадцать ","четырнадцать ","пятнадцать ","шестнадцать ","семнадцать ","восемнадцать ","девятнадцать "},MOD(TRUNC(AJ24/1000),10)+1),"двадцать ","тридцать ","сорок ","пятьдесят ","шестьдесят ","семьдесят ","восемьдесят ","девяносто ")&IF(MOD(TRUNC(AJ24/10^4),10)<>1,INDEX({"","одна ","две ","три ","четыре ","пять ","шесть ","семь ","восемь ","девять "},MOD(TRUNC(AJ24/1000),10)+1),"")&IF(MOD(TRUNC(AJ24/1000),1000),"тысяч"&IF(MOD(TRUNC(AJ24/10^4),10)=1," ",VLOOKUP(MOD(TRUNC(AJ24/1000),10),{0," ";1,"а ";2,"и ";5," "},2)),"")&INDEX({"","сто ","двести ","триста ","четыреста ","пятьсот ","шестьсот ","семьсот ","восемьсот ","девятьсот "},MOD(TRUNC(AJ24/100),10)+1)&CHOOSE(MOD(TRUNC(AJ24/10),10)+1,"",INDEX({"десять ","одиннадцать ","двенадцать ","тринадцать ","четырнадцать ","пятнадцать ","шестнадцать ","семнадцать ","восемнадцать ","девятнадцать "},MOD(TRUNC(AJ24),10)+1),"двадцать ","тридцать ","сорок ","пятьдесят ","шестьдесят ","семьдесят ","восемьдесят ","девяносто ")&IF(TRUNC(AJ24)=0,"ноль ",IF(MOD(TRUNC(AJ24/10),10)<>1,INDEX({"","один ","два ","три ","четыре ","пять ","шесть ","семь ","восемь ","девять "},MOD(TRUNC(AJ24),10)+1),""))&"талон"&IF(MOD(TRUNC(AJ24/10),10)=1,"ов",VLOOKUP(MOD(TRUNC(AJ24),10),{0,"ов";1,"ь";2,"а";5,"ов"},2))&TEXT(TRUNC((AJ24-TRUNC(AJ24)+0.00001)*100),) -> семьдесят восемь талонов
B28: 5. Данная формула совмещает в себе все первые три формулы.
B30: Таб№ | C30: Фамилия, Имя, Отчество | E30: Отработано часов по числам месяца | AJ30: Часы
E31: 1 | F31: 2 | G31: 3 | H31: 4 | I31: 5 | J31: 6 | K31: 7 | L31: 8 | M31: 9 | N31: 10 | O31: 11 | P31: 12 | Q31: 13 | R31: 14 | S31: 15 | T31: 16 | U31: 17 | V31: 18 | W31: 19 | X31: 20 | Y31: 21 | Z31: 22 | AA31: 23 | AB31: 24 | AC31: 25 | AD31: 26 | AE31: 27 | AF31: 28 | AG31: 29 | AH31: 30 | AI31: 31
B32: =IFERROR(VLOOKUP(C32,Список!$B$2:$C$150,2,0),"") -> 465 | C32: Рудницкий С.Н. | D32: Машинист 6 р. | P32: 12 | S32: 12 | T32: 12 | W32: 12 | X32: 12 | AJ32: =SUM(IF(RIGHTB(D32)="%",TEXT(INDEX(E$32:AI32,MATCH(LEFTB(C32,SEARCH("%",D32)),(C$32:C32),),),"0;0;12")*E32:AI32%,E32:AI32)) -> 60
B33: =IFERROR(VLOOKUP(C33,Список!$B$2:$C$150,2,0),"") -> 465 | C33: Рудницкий С.Н. | D33: Ап.пр.хим.р-в 3 р. % | P33: 25 | S33: 25 | T33: 25 | W33: 25 | X33: 25 | AJ33: =SUM(IF(RIGHTB(D33)="%",TEXT(INDEX(E$32:AI33,MATCH(LEFTB(C33,SEARCH("%",D33)),(C$32:C33),),),"0;0;12")*E33:AI33%,E33:AI33)) -> 15
B34: =IFERROR(VLOOKUP(C34,Список!$B$2:$C$150,2,0),"") -> 465 | C34: Рудницкий С.Н. | D34: Маш.уп. маш. 2 р. % | P34: 50 | S34: 50 | T34: 50 | W34: 50 | X34: 50 | AJ34: =SUM(IF(RIGHTB(D34)="%",TEXT(INDEX(E$32:AI34,MATCH(LEFTB(C34,SEARCH("%",D34)),(C$32:C34),),),"0;0;12")*E34:AI34%,E34:AI34)) -> 30
B35: =IFERROR(VLOOKUP(C35,Список!$B$2:$C$150,2,0),"") -> 465 | C35: Рудницкий С.Н. | D35: Накатчик 3 р. % | P35: 100 | S35: 100 | T35: 100 | W35: 100 | X35: 100 | AJ35: =SUM(IF(RIGHTB(D35)="%",TEXT(INDEX(E$32:AI35,MATCH(LEFTB(C35,SEARCH("%",D35)),(C$32:C35),),),"0;0;12")*E35:AI35%,E35:AI35)) -> 60
B36: =IFERROR(VLOOKUP(C36,Список!$B$2:$C$150,2,0),"") -> 0 | C36: Адамюк Е.В. | I36: 2 | AJ36: =SUM(IF(RIGHTB(D36)="%",TEXT(INDEX(E$32:AI36,MATCH(LEFTB(C36,SEARCH("%",D36)),(C$32:C36),),),"0;0;12")*E36:AI36%,E36:AI36)) -> 2

Sheet Список (hidden)
A1: № | B1: ФИО | C1: Таб.№ | D1: Конт-т | E1: Кол.дог. | F1: Проф.м. | G1: За рук.бриг. | H1: За сложн. | I1: Вр.зач.БФГ | J1: Стаж | K1: Профессия | L1: Час.т.ставка | M1: Знаки | N1: Месяц | O1: Мастера смен | P1: Наряды | Q1: Расценка за ед.
A2: 1 | B2: Амосова Т.Ф. | C2: =IF(B2="Амосова Т.Ф.",342) -> 342 | J2: =IF(I2="","",SUM(TODAY()-I2)/365) ->  | K2: Ап.пр.хим.р-в 3 р. | L2: =IF(K2="Ап.пр.хим.р-в 3 р.",5481) -> 5481 | M2: 1 | N2: Январь, 2016 г. | O2: см. Буйко В.Г. | P2: в том числе связывание канатика | Q2: =IF(P2="в том числе связывание канатика",16309) -> 16309
A3: 2 | B3: Адамюк Е.В. | J3: =IF(I3="","",SUM(TODAY()-I3)/365) ->  | K3: Ап.пр.хим.р-в 3 р. % | L3: =IF(K3="Ап.пр.хим.р-в 3 р. %",5481) -> 5481 | M3: 2 | N3: Февраль, 2016 г. | O3: см. Булавский А.В. | P3: композиционного, оборотного брака, сгущеной целлюлозы | Q3: =IF(P3="композиционного, оборотного брака, сгущеной целлюлозы",32283) -> 32283
A4: 3 | B4: Аниськович А.П. | C4: =IF(B4="Аниськович А.П.",1339) -> 1339 | K4: Мастер смены | L4: 2022566 | M4: 3 | N4: Март, 2016 г. | O4: см. Кузьбар И.Н. | P4: Переупаковка ролевой бумаги | Q4: =IF(P4="Переупаковка ролевой бумаги",7536) -> 7536
A5: 4 | B5: Апет И.В. | C5: =IF(B5="Апет И.В.",2234) -> 2234 | K5: Маш.уп. маш. 2 р. | L5: =IF(K5="Маш.уп. маш. 2 р.",4710) -> 4710 | M5: 4 | N5: Апрель, 2016 г. | O5: см. Сандульская Л.А. | P5: Промывка и чистка сгустителя | Q5: =IF(P5="Промывка и чистка сгустителя",10688) -> 10688
A6: 5 | B6: Богодяж Т.А. | C6: =IF(B6="Богодяж Т.А.",1609) -> 1609 | K6: Маш.уп. маш. 2 р. % | L6: =IF(K6="Маш.уп. маш. 2 р. %",4710) -> 4710 | M6: 5 | N6: Май, 2015 г. | O6: см. Хомич Н.Н. | P6: Промывка и чистка флотоловушки | Q6: =IF(P6="Промывка и чистка флотоловушки",36134) -> 36134
A7: 6 | B7: Брикун М.А. | C7: =IF(B7="Брикун М.А.",1179) -> 1179 | K7: Машинист 6 р. | L7: =IF(K7="Машинист 6 р.",7715) -> 7715 | M7: 6 | N7: Июнь, 2015 г. | P7: Резка и упаковка ленты бумажной для плоттеров 70 г/м2, ф. 1000 мм | Q7: =IF(P7="Резка и упаковка ленты бумажной для плоттеров 70 г/м2, ф. 1000 мм",4874) -> 4874
A8: 7 | B8: Буйко В.Г. | C8: =IF(B8="Буйко В.Г.",1241) -> 1241 | K8: Накатчик 3 р. | L8: =IF(K8="Накатчик 3 р.",5481) -> 5481 | M8: 7 | N8: Июль, 2015 г. | P8: Резка и упаковка ленты бумажной для плоттеров 70 г/м2, ф. 1500 мм | Q8: =IF(P8="Резка и упаковка ленты бумажной для плоттеров 70 г/м2, ф. 1500 мм",8356) -> 8356
A9: 8 | B9: Булавский А.В. | C9: =IF(B9="Булавский А.В.",1515) -> 1515 | K9: Накатчик 3 р. % | L9: =IF(K9="Накатчик 3 р. %",5481) -> 5481 | M9: 8 | N9: Август, 2015 г. | P9: Резка и упаковка ленты бумажной для плоттеров 70 г/м2, ф. 1510 мм | Q9: =IF(P9="Резка и упаковка ленты бумажной для плоттеров 70 г/м2, ф. 1510 мм",8356) -> 8356
A10: 9 | B10: Буракова Т.А. | C10: =IF(B10="Буракова Т.А.",643) -> 643 | K10: Оклад | M10: 9 | N10: Сентябрь, 2015 г. | P10: Резка и упаковка ленты бумажной для плоттеров 70 г/м2, ф. 1600 мм | Q10: =IF(P10="Резка и упаковка ленты бумажной для плоттеров 70 г/м2, ф. 1600 мм",8356) -> 8356
A11: 10 | B11: Бурдыко Е.А. | C11: =IF(B11="Бурдыко Е.А.",2269) -> 2269 | K11: Перссовщик 3 р. | L11: =IF(K11="Перссовщик 3 р.",5481) -> 5481 | M11: 10 | N11: Октябрь, 2015 г. | P11: Резка и упаковка ленты бумажной для плоттеров 70 г/м2, ф. 1680 мм | Q11: =IF(P11="Резка и упаковка ленты бумажной для плоттеров 70 г/м2, ф. 1680 мм",8356) -> 8356
A12: 11 | B12: Бурыхин С.А. | C12: =IF(B12="Бурыхин С.А.",1501) -> 1501 | K12: Перссовщик 3 р. % | L12: =IF(K12="Перссовщик 3 р. %",5481) -> 5481 | M12: 11 | N12: Ноябрь, 2015 г. | P12: Резка и упаковка ленты бумажной для плоттеров 70 г/м2, ф. 1800 мм | Q12: =IF(P12="Резка и упаковка ленты бумажной для плоттеров 70 г/м2, ф. 1800 мм",8356) -> 8356
A13: 12 | B13: Буслов А.А. | C13: =IF(B13="Буслов А.А.",2150) -> 2150 | K13: Разм. брака 2 р. | L13: =IF(K13="Разм. брака 2 р.",4710) -> 4710 | M13: 12 | N13: Декабрь, 2015 г. | P13: Резка и упаковка ленты бумажной для плоттеров 70 г/м2, ф. 1900 мм | Q13: =IF(P13="Резка и упаковка ленты бумажной для плоттеров 70 г/м2, ф. 1900 мм",8356) -> 8356
A14: 13 | B14: Бушкин В.Д. | C14: =IF(B14="Бушкин В.Д.",1430) -> 1430 | K14: Разм. брака 2 р. % | L14: =IF(K14="Разм. брака 2 р. %",4710) -> 4710 | M14: 1' | N14: Прочее | P14: Резка и упаковка ленты бумажной для плоттеров 70 г/м2, ф. 2000 мм | Q14: =IF(P14="Резка и упаковка ленты бумажной для плоттеров 70 г/м2, ф. 2000 мм",8356) -> 8356
A15: 14 | B15: Бушкина Т.П. | C15: =IF(B15="Бушкина Т.П.",531) -> 531 | K15: Разм. ГРВ 3 р. | L15: =IF(K15="Разм. ГРВ 3 р.",5481) -> 5481 | M15: 12' | N15: Останов БДМ | P15: Резка и упаковка ленты бумажной для плоттеров 80 г/м2, ф. 1000 мм | Q15: =IF(P15="Резка и упаковка ленты бумажной для плоттеров 80 г/м2, ф. 1000 мм",4874) -> 4874
A16: 15 | B16: Буяновская В.П. | C16: =IF(B16="Буяновская В.П.",489) -> 489 | K16: Разм. ПО 3 р. | L16: =IF(K16="Разм. ПО 3 р.",5481) -> 5481 | M16: 2' | N16: БДМ № 1 | P16: Резка и упаковка ленты бумажной для плоттеров 80 г/м2, ф. 1500 мм | Q16: =IF(P16="Резка и упаковка ленты бумажной для плоттеров 80 г/м2, ф. 1500 мм",8356) -> 8356
A17: 16 | B17: Ваньков С.П. | C17: =IF(B17="Ваньков С.П.",115) -> 115 | K17: Разм. ПО 3 р. % | L17: =IF(K17="Разм. ПО 3 р. %",5481) -> 5481 | M17: 3' | N17: БДМ № 2 | P17: Резка и упаковка ленты бумажной для плоттеров 80 г/м2, ф. 1510 мм | Q17: =IF(P17="Резка и упаковка ленты бумажной для плоттеров 80 г/м2, ф. 1510 мм",8356) -> 8356
A18: 17 | B18: Ванькова Л.Е. | C18: =IF(B18="Ванькова Л.Е.",365) -> 365 | K18: Разм. РПО 3 р. | L18: =IF(K18="Разм. РПО 3 р.",5481) -> 5481 | M18: 4' | N18: Бумажный цех | P18: Резка и упаковка ленты бумажной для плоттеров 80 г/м2, ф. 1680 мм | Q18: =IF(P18="Резка и упаковка ленты бумажной для плоттеров 80 г/м2, ф. 1680 мм",8356) -> 8356
A19: 18 | B19: Васильева О.А. | C19: =IF(B19="Васильева О.А.",1560) -> 1560 | K19: Разм. РПО 3 р. % | L19: =IF(K19="Разм. РПО 3 р. %",5481) -> 5481 | M19: 5' | P19: Резка и упаковка ленты бумажной для плоттеров 80 г/м2, ф. 1800 мм | Q19: =IF(P19="Резка и упаковка ленты бумажной для плоттеров 80 г/м2, ф. 1800 мм",8356) -> 8356
A20: 19 | B20: Волегов А.Г. | C20: =IF(B20="Волегов А.Г.",208) -> 208 | K20: Разм. РПО 4 р. | L20: =IF(K20="Разм. РПО 4 р.",6375) -> 6375 | M20: 6' | P20: Резка и упаковка ленты бумажной для плоттеров 80 г/м2, ф. 1900 мм | Q20: =IF(P20="Резка и упаковка ленты бумажной для плоттеров 80 г/м2, ф. 1900 мм",8356) -> 8356
A21: 20 | B21: Волегова Г.И. | C21: =IF(B21="Волегова Г.И.",707) -> 707 | K21: Разм. РПО 4 р. % | L21: =IF(K21="Разм. РПО 4 р. %",6375) -> 6375 | M21: 7' | P21: Резка и упаковка ленты бумажной для плоттеров 80 г/м2, ф. 2000 мм | Q21: =IF(P21="Резка и упаковка ленты бумажной для плоттеров 80 г/м2, ф. 2000 мм",8356) -> 8356
A22: 21 | B22: Воронцевич М.П. | C22: =IF(B22="Воронцевич М.П.",298) -> 298 | K22: Разм. РПО 5 р. | L22: =IF(K22="Разм. РПО 5 р.",7024) -> 7024 | M22: 8' | P22: Смена верхних сушильных сеток 1-5-й сушильных групп | Q22: =IF(P22="Смена верхних сушильных сеток 1-5-й сушильных групп",168705) -> 168705
A23: 22 | B23: Гарбузов Г.Л. | C23: =IF(B23="Гарбузов Г.Л.",381) -> 381 | K23: Резчик ПРС 3 р. | L23: =IF(K23="Резчик ПРС 3 р.",5481) -> 5481 | M23: А | P23: Смена канатика | Q23: =IF(P23="Смена канатика",53279) -> 53279
A24: 23 | B24: Гвоздь М.П. | C24: =IF(B24="Гвоздь М.П.",561) -> 561 | K24: Резчик ПРС 3 р. % | L24: =IF(K24="Резчик ПРС 3 р. %",5481) -> 5481 | M24: Б | P24: Смена нижних сушильных сеток 1-5-й сушильных групп | Q24: =IF(P24="Смена нижних сушильных сеток 1-5-й сушильных групп",171505) -> 171505
A25: 24 | B25: Гендик Н.В. | C25: =IF(B25="Гендик Н.В.",552) -> 552 | K25: Резчик ПРС 4 р. | L25: =IF(K25="Резчик ПРС 4 р.",6375) -> 6375 | M25: В | N25: Ед.изм | P25: Смена прессовых сукон БДМ№2 | Q25: =IF(P25="Смена прессовых сукон БДМ№2",43914) -> 43914
A26: 25 | B26: Гончарук А.В. | C26: =IF(B26="Гончарук А.В.",652) -> 652 | K26: Резчик ПРС 4 р. % | L26: =IF(K26="Резчик ПРС 4 р. %",6375) -> 6375 | M26: Г | N26: Шт | P26: Смена прессовых сукон марки Гешмай со снятием сукна вруч-ю | Q26: =IF(P26="Смена прессовых сукон марки Гешмай со снятием сукна вруч-ю",139841) -> 139841
A27: 26 | B27: Гончарук Т.И. | C27: =IF(B27="Гончарук Т.И.",479) -> 479 | K27: Сушильщик 4 р. | L27: =IF(K27="Сушильщик 4 р.",6375) -> 6375 | M27: К | N27: Кг | P27: Смена сетки БДМ | Q27: =IF(P27="Смена сетки БДМ",285830) -> 285830
A28: 27 | B28: Гридюшко П.А. | C28: =IF(B28="Гридюшко П.А.",1499) -> 1499 | K28: Сушильщик 4 р. % | L28: =IF(K28="Сушильщик 4 р. %",6375) -> 6375 | M28: О | N28: Т | P28: Смена сетки БДМ№2 | Q28: =IF(P28="Смена сетки БДМ№2",203513) -> 203513
A29: 28 | B29: Грузд Н.Н. | C29: =IF(B29="Грузд Н.Н.",1311) -> 1311 | K29: Тран.мат-ов | M29: Ос | P29: Смена сушильных сеток БДМ№2 | Q29: =IF(P29="Смена сушильных сеток БДМ№2",83586) -> 83586
A30: 29 | B30: Дворянкина Е.Л. | C30: =IF(B30="Дворянкина Е.Л.",508) -> 508 | K30: Уб.быт.пом-й | M30: Оу | P30: Снятие сетки БДМ вручную | Q30: =IF(P30="Снятие сетки БДМ вручную",240807) -> 240807
A31: 30 | B31: Дик А.С. | C31: =IF(B31="Дик А.С.",1089) -> 1089 | M31: Пр | P31: Снятие сукна марки Гешмай | Q31: =IF(P31="Снятие сукна марки Гешмай",70261) -> 70261
A32: 31 | B32: Дорц Д.В. | C32: =IF(B32="Дорц Д.В.",1147) -> 1147 | M32: 9' | P32: Упаковка ролевой бумаги | Q32: =IF(P32="Упаковка ролевой бумаги",3646) -> 3646
A33: 32 | B33: Драгун В.В. | C33: =IF(B33="Драгун В.В.",481) -> 481 | M33: 10' | P33: Упаковка ролевой документной бумаги | Q33: =IF(P33="Упаковка ролевой документной бумаги",2512) -> 2512
A34: 33 | B34: Драпезо Ю.Н. | C34: =IF(B34="Драпезо Ю.Н.",548) -> 548 | M34: 11' | P34: Установка иглопробивного сукна | Q34: =IF(P34="Установка иглопробивного сукна",83288) -> 83288
A35: 34 | B35: Драч М.В. | C35: =IF(B35="Драч М.В.",1659) -> 1659 | P35: Чистка ГРВ и ГРГ | Q35: =IF(P35="Чистка ГРВ и ГРГ",36134) -> 36134
A36: 35 | B36: Дроздецкий В.С. | C36: =IF(B36="Дроздецкий В.С.",1335) -> 1335 | P36: Чистка скребками и промывка бассейнов: машинного,массного | Q36: =IF(P36="Чистка скребками и промывка бассейнов: машинного,массного",43026) -> 43026
A37: 36 | B37: Дунаев С.Е. | C37: =IF(B37="Дунаев С.Е.",2035) -> 2035 | P37: Чистка скребками и промывка бассейнов: приёмный, размольный | Q37: =IF(P37="Чистка скребками и промывка бассейнов: приёмный, размольный",32283) -> 32283
A38: 37 | B38: Жавранок И.Г. | C38: =IF(B38="Жавранок И.Г.",712) -> 712 | P38: Чистка скребками и промывка бассейнов:избыт. и регистр.воды | Q38: =IF(P38="Чистка скребками и промывка бассейнов:избыт. и регистр.воды",32283) -> 32283
A39: 38 | B39: Жердочкина А.М. | C39: =IF(B39="Жердочкина А.М.",1141) -> 1141
A40: 39 | B40: Жизневская Т.Ф. | C40: =IF(B40="Жизневская Т.Ф.",491) -> 491
A41: 40 | B41: Жудрак Л.В. | C41: =IF(B41="Жудрак Л.В.",1500) -> 1500
A42: 41 | B42: Залан А.В. | C42: =IF(B42="Залан А.В.",856) -> 856
A43: 42 | B43: Захаров С.А. | C43: =IF(B43="Захаров С.А.",853) -> 853
A44: 43 | B44: Заяц Т.Л. | C44: =IF(B44="Заяц Т.Л.",509) -> 509
A45: 44 | B45: Зеленкевич Нат.В. | C45: =IF(B45="Зеленкевич Нат.В.",501) -> 501
A46: 45 | B46: Зеленкевич Ник.В. | C46: =IF(B46="Зеленкевич Ник.В.",1083) -> 1083
A47: 46 | B47: Зеленко В.Л. | C47: =IF(B47="Зеленко В.Л.",1360) -> 1360
A48: 47 | B48: Кадевич О.В. | C48: =IF(B48="Кадевич О.В.",1379) -> 1379
A49: 48 | B49: Каляпина К.А. | C49: =IF(B49="Каляпина К.А.",1537) -> 1537
A50: 49 | B50: Карась А.Н. | C50: =IF(B50="Карась А.Н.",2100) -> 2100
A51: 50 | B51: Кирилуша С.В. | C51: =IF(B51="Кирилуша С.В.",497) -> 497
A52: 51 | B52: Ковалёв Д.А. | C52: =IF(B52="Ковалёв Д.А.",1538) -> 1538
A53: 52 | B53: Коваль О.Г. | C53: =IF(B53="Коваль О.Г.",1497) -> 1497
A54: 53 | B54: Козаков С.Л. | C54: =IF(B54="Козаков С.Л.",1404) -> 1404
A55: 54 | B55: Комадей Д.В. | C55: =IF(B55="Комадей Д.В.",1454) -> 1454
A56: 55 | B56: Конон Н.В. | C56: =IF(B56="Конон Н.В.",2338) -> 2338
A57: 56 | B57: Короленко А.В. | C57: =IF(B57="Короленко А.В.",532) -> 532
A58: 57 | B58: Костин А.М. | C58: =IF(B58="Костин А.М.",1653) -> 1653
A59: 58 | B59: Кудревич О.М. | C59: =IF(B59="Кудревич О.М.",170) -> 170
A60: 59 | B60: Кузьбар И.Н. | C60: =IF(B60="Кузьбар И.Н.",1637) -> 1637
A61: 60 | B61: Курносова О.Ф. | C61: =IF(B61="Курносова О.Ф.",478) -> 478
A62: 61 | B62: Кучинская Е.М. | C62: =IF(B62="Кучинская Е.М.",708) -> 708
A63: 62 | B63: Лебедев О.Л. | C63: =IF(B63="Лебедев О.Л.",514) -> 514
A64: 63 | B64: Ливанович С.В. | C64: =IF(B64="Ливанович С.В.",536) -> 536
A65: 64 | B65: Лысковец А.Н. | C65: =IF(B65="Лысковец А.Н.",1291) -> 1291
A66: 65 | B66: Лысковец О.И. | C66: =IF(B66="Лысковец О.И.",1517) -> 1517
A67: 66 | B67: Макатерчик А.Н. | C67: =IF(B67="Макатерчик А.Н.",1307) -> 1307 | J67: =IF(I67="","",SUM(TODAY()-I67)/365) -> 
A68: 67 | B68: Макрицкий Ю.В. | C68: =IF(B68="Макрицкий Ю.В.",2108) -> 2108
A69: 68 | B69: Маркелов Д.Н. | C69: =IF(B69="Маркелов Д.Н.",1675) -> 1675
A70: 69 | B70: Мисник Ю.А. | C70: =IF(B70="Мисник Ю.А.",603) -> 603
A71: 70 | B71: Мишук А.В. | C71: =IF(B71="Мишук А.В.",1677) -> 1677
A72: 71 | B72: Мишук В.В. | C72: =IF(B72="Мишук В.В.",2037) -> 2037
A73: 72 | B73: Мишук О.В. | C73: =IF(B73="Мишук О.В.",2127) -> 2127
A74: 73 | B74: Мишук Р.В. | C74: =IF(B74="Мишук Р.В.",300) -> 300
A75: 74 | B75: Мороз А.П. | C75: =IF(B75="Мороз А.П.",1503) -> 1503
A76: 75 | B76: Новоселов А.В. | C76: =IF(B76="Новоселов А.В.",1508) -> 1508
A77: 76 | B77: Орловский А.М. | C77: =IF(B77="Орловский А.М.",1674) -> 1674
A78: 77 | B78: Пантелей А.В. | C78: =IF(B78="Пантелей А.В.",833) -> 833
A79: 78 | B79: Петров В.А. | C79: =IF(B79="Петров В.А.",1393) -> 1393
A80: 79 | B80: Петровых В.В. | C80: =IF(B80="Петровых В.В.",2255) -> 2255
A81: 80 | B81: Поплавский В.И. | C81: =IF(B81="Поплавский В.И.",255) -> 255
A82: 81 | B82: Пресняков Г.В. | C82: =IF(B82="Пресняков Г.В.",1676) -> 1676
A83: 82 | B83: Раловец Л.П. | C83: =IF(B83="Раловец Л.П.",572) -> 572
A84: 83 | B84: Романов В.В. | C84: =IF(B84="Романов В.В.",2095) -> 2095
A85: 84 | B85: Романчук В.В. | C85: =IF(B85="Романчук В.В.",338) -> 338
A86: 85 | B86: Ротченкова С.С. | C86: =IF(B86="Ротченкова С.С.",231) -> 231
A87: 86 | B87: Рощупкина Л.И. | C87: =IF(B87="Рощупкина Л.И.",1608) -> 1608
A88: 87 | B88: Рудницкий С.Н. | C88: =IF(B88="Рудницкий С.Н.",465) -> 465
A89: 88 | B89: Рябов О.С. | C89: =IF(B89="Рябов О.С.",462) -> 462
A90: 89 | B90: Савельева Н.И. | C90: =IF(B90="Савельева Н.И.",534) -> 534
A91: 90 | B91: Сандульская Л.А. | C91: =IF(B91="Сандульская Л.А.",420) -> 420
A92: 91 | B92: Сацук А.Л. | C92: =IF(B92="Сацук А.Л.",761) -> 761
A93: 92 | B93: Сацукевич С.П. | C93: =IF(B93="Сацукевич С.П.",265) -> 265
A94: 93 | B94: Свидрицкая В.С. | C94: =IF(B94="Свидрицкая В.С.",1256) -> 1256
A95: 94 | B95: Серий В.А. | C95: =IF(B95="Серий В.А.",515) -> 515
A96: 95 | B96: Симонова Т.В. | C96: =IF(B96="Симонова Т.В.",519) -> 519
A97: 96 | B97: Скачек А.В. | C97: =IF(B97="Скачек А.В.",1649) -> 1649
A98: 97 | B98: Хомич Н.Н. | C98: =IF(B98="Хомич Н.Н.",589) -> 589
A99: 98 | B99: Хомодеев В.В. | C99: =IF(B99="Хомодеев В.В.",2325) -> 2325
A100: 99 | B100: Цедрик Т.Н. | C100: =IF(B100="Цедрик Т.Н.",1140) -> 1140
A101: 100 | B101: Шаповалов В.А. | C101: =IF(B101="Шаповалов В.А.",1316) -> 1316
A102: 101 | B102: Шерий Д.В. | C102: =IF(B102="Шерий Д.В.",563) -> 563
A103: 102 | B103: Ясинский В.С. | C103: =IF(B103="Ясинский В.С.",70) -> 70
A104: 103
A105: 104
A106: 105 | J106: =IF(I106="","",SUM(TODAY()-I106)/365) -> 
A107: 106
A108: 107
A109: 108
A110: 109
A111: 110
A112: 111
A113: 112
A114: 113
A115: 114
A116: 115
A117: 116
A118: 117
A119: 118
A120: 119
A121: 120
A122: 121
A123: 122
A124: 123
A125: 124
A126: 125
A127: 126
A128: 127
A129: 128
A130: 129
A131: 130 | J131: =IF(I131="","",SUM(TODAY()-I131)/365) -> 
A132: 131
A133: 132
A134: 133
A135: 134
A136: 135
A137: 136
A138: 137
A139: 138
A140: 139
A141: 140
A142: 141
A143: 142
A144: 143
A145: 144
A146: 145
A147: 146
A148: 147
A149: 148
A150: 149
A151: 150
